Workbook

Sheet App.2-EC_Account 1576
A4: Table 1 (Appendix 2-EC)
A5: Account 1576 - Accounting Changes under CGAAP
A6: 2013 Changes in Accounting Policies under CGAAP
A8: For applicants that made capitalization and depreciation expense accounting policy changes under CGAAP effective January 1, 2013
B12: 2011 Rebasing Year | C12: 2011 | D12: 2012 | E12: 2013 | F12: 2014 | G12: 2015 | H12: 2016 | I12: 2017 | J12: 2018
A13: Reporting Basis | B13: CGAAP | C13: IRM | D13: IRM | E13: IRM | F13: IRM | G13: IRM | H13: IRM | I13: IRM | J13: IRM
B14: Forecast | C14: Actual | D14: Actual | E14: Actual | F14: Actual | G14: Actual | H14: Actual | I14: Actual | J14: Forecast
F15: $ | G15: $ | H15: $ | I15: $ | J15: $
A16: PP&E Values under former CGAAP
A17: Opening net PP&E - Note 1 | E17: =ROUND('App.2-BA_Fixed Asset Cont'!D61+'App.2-BA_Fixed Asset Cont'!I61,0) -> 62595123 | F17: =+E20 -> 67383734 | G17: =+F20 -> 68401948 | H17: =G20 -> 69093047 | I17: =+H20 -> 73944278 | J17: =+I20 -> 78460058
A18: Net Additions - Note 4 | E18: =ROUND('App.2-BA_Fixed Asset Cont'!E61+'App.2-BA_Fixed Asset Cont'!F61,0) -> 11211167 | F18: =ROUND('App.2-BA_Fixed Asset Cont'!E132+'App.2-BA_Fixed Asset Cont'!F132,0) -> 5892601 | G18: =ROUND('App.2-BA_Fixed Asset Cont'!E201+'App.2-BA_Fixed Asset Cont'!F201,0) -> 6091769 | H18: =ROUND('App.2-BA_Fixed Asset Cont'!E272+'App.2-BA_Fixed Asset Cont'!F272,0) -> 9276081 | I18: =ROUND('App.2-BA_Fixed Asset Cont'!E345+'App.2-BA_Fixed Asset Cont'!F345,0) -> 10683517 | J18: =ROUND('App.2-BA_Fixed Asset Cont'!E418+'App.2-BA_Fixed Asset Cont'!F418,0) -> 11654922
A19: Net Depreciation (amounts should be negative) - Note 4 | E19: =ROUND('App.2-BA_Fixed Asset Cont'!J61+'App.2-BA_Fixed Asset Cont'!K61,0) -> -6422556 | F19: =ROUND('App.2-BA_Fixed Asset Cont'!J132+'App.2-BA_Fixed Asset Cont'!K132,0) -> -4874387 | G19: =ROUND('App.2-BA_Fixed Asset Cont'!J201+'App.2-BA_Fixed Asset Cont'!K201,0) -> -5400670 | H19: =ROUND('App.2-BA_Fixed Asset Cont'!J272+'App.2-BA_Fixed Asset Cont'!K272,0) -> -4424850 | I19: =ROUND('App.2-BA_Fixed Asset Cont'!J345+'App.2-BA_Fixed Asset Cont'!K345,0) -> -6167737 | J19: =ROUND('App.2-BA_Fixed Asset Cont'!J418+'App.2-BA_Fixed Asset Cont'!K418,0) -> -5689962
A20: Closing net PP&E (1) | E20: =E17+E18+E19 -> 67383734 | F20: =SUM(F17:F19) -> 68401948 | G20: 69093047 | H20: 73944278 | I20: 78460058 | J20: =SUM(J17:J19) -> 84425018
A22: PP&E Values under revised CGAAP/MIFRS (Starts from 2013)
A23: Opening net PP&E - Note 1 | E23: =E17 -> 62595123 | F23: =+E26 -> 68625082 | G23: =+F26 -> 70419512 | H23: =+G26 -> 72311421 | I23: =+H26 -> 77176754 | J23: =+I26 -> 81594285
A24: Net Additions - Note 4 | E24: =ROUND('App.2-BA_Fixed Asset Cont'!T61+'App.2-BA_Fixed Asset Cont'!V61,0) -> 10119200 | F24: =ROUND('App.2-BA_Fixed Asset Cont'!T132+'App.2-BA_Fixed Asset Cont'!V132,0) -> 5126385 | G24: =ROUND('App.2-BA_Fixed Asset Cont'!T201+'App.2-BA_Fixed Asset Cont'!V201,0) -> 5188988 | H24: =ROUND('App.2-BA_Fixed Asset Cont'!T272+'App.2-BA_Fixed Asset Cont'!V272+'App.2-BA_Fixed Asset Cont'!U272,0) -> 8259673 | I24: =ROUND('App.2-BA_Fixed Asset Cont'!T345+'App.2-BA_Fixed Asset Cont'!V345,0) -> 7894974 | J24: =ROUND('App.2-BA_Fixed Asset Cont'!T418+'App.2-BA_Fixed Asset Cont'!V418,0) -> 10261089
A25: Net Depreciation (amounts should be negative) - Note 4 | E25: =ROUND('App.2-BA_Fixed Asset Cont'!Z61+'App.2-BA_Fixed Asset Cont'!AB61,0) -> -4089241 | F25: =ROUND('App.2-BA_Fixed Asset Cont'!Z132+'App.2-BA_Fixed Asset Cont'!AB132,0) -> -3331955 | G25: =ROUND('App.2-BA_Fixed Asset Cont'!Z201+'App.2-BA_Fixed Asset Cont'!AB201,0) -> -3297079 | H25: =ROUND('App.2-BA_Fixed Asset Cont'!Z272+'App.2-BA_Fixed Asset Cont'!AB272,0) -> -3394340 | I25: =ROUND('App.2-BA_Fixed Asset Cont'!Z345+'App.2-BA_Fixed Asset Cont'!AB345,0) -> -3477443 | J25: =ROUND('App.2-BA_Fixed Asset Cont'!Z418+'App.2-BA_Fixed Asset Cont'!AB418,0) -> -3523036
A26: Closing net PP&E (2) | E26: =SUM(E23:E25) -> 68625082 | F26: 70419512 | G26: =SUM(G23:G25) -> 72311421 | H26: =SUM(H23:H25) -> 77176754 | I26: 81594285 | J26: =SUM(J23:J25) -> 88332338
A28: Difference in Closing net PP&E, former CGAAP vs. revised CGAAP /MIFRS | E28: =E20-E26 -> -1241348 | F28: =F20-F26 -> -2017564 | G28: =G20-G26 -> -3218374 | H28: =H20-H26 -> -3232476 | I28: -3134227 | J28: -3907320
A31: Adjustments to Account 1576 Balance for Interim Dispositions:
A32: EB-2015-0113/0251
A33: Actual amount refunded to customers through rate riders (cumulative) | H33: 2133491 | I33: =H33+31789 -> 2165280 | J33: =I33+0 -> 2165280
A34: less approved return on rate based | H34: -142036 | I34: =H34+0 -> -142036 | J34: =I34 -> -142036
A36: EB-2016-0114
A37: Actual amount refunded to customers through rate riders (cumulative) | I37: 1248233 | J37: =I37+18245 -> 1266478
A38: less approved return on rate based | I38: -84536 | J38: =I38 -> -84536
A40: Account 1576 Balance | E40: =SUM(E28:E39) -> -1241348 | F40: -2017564 | G40: -3218374 | H40: -1241021 | I40: 52714 | J40: -702134
A42: Effect on Deferral and Variance Account Rate Riders
A43: Closing balance in Account 1576 | J43: =J40 -> -702134 | L43: WACC | M43: 0.0704
A44: Return on Rate Base Associated with Account 1576 balance at WACC - Note 2 | J44: =J40*$M$43*$M$44 -> -49430.2336 | L44: # of years of rate rider disposition period | M44: 1
A45: Amount included in Deferral and Variance Account Rate Rider Calculation | J45: =J43+J44 -> -751564.2336
A47: Notes:
A48: 1 For an applicant that made the capitalization and depreciation expense accounting policy changes on January 1, 2013, the PP&E values as of January 1, 2013 under both former CGAAP and revised CGAAP should be the same.
A49: 2 Return on rate base associated with Account 1576 balance is calculated as:
A50: the variance account opening balance as of 2015 rebasing year x WACC X # of years of rate rider disposition period
A51: * Please note that the calculation should be adjusted once WACC is updated and finalized in the rate application.
A52: 3 Account 1576 is cleared by including the total balance in the deferral and variance account rate rider calculation.
A53: 4 Net additions are additions net of disposals; Net depreciation is additions to depreciation net of disposals.

Sheet App.2-BA_Fixed Asset Cont
B2: TABLE 2-1 (Appendix 2-BA) | Q2: TABLE 2-2 (Appendix 2-BA)
B3: Fixed Asset Continuity Schedule | Q3: Fixed Asset Continuity Schedule
E5: Accounting Standard | F5: CGAAP | T5: Accounting Standard | V5: RCGAAP
E6: Year | F6: 2013 | T6: Year | V6: 2013
D8: Cost | J8: Accumulated Depreciation | S8: Cost | Z8: Accumulated Depreciation
B9: OEB | C9: Description | D9: Opening Balance | E9: Additions | F9: Disposals | G9: Closing Balance | I9: Opening Balance | J9: Additions | K9: Disposals | L9: Closing Balance | M9: Net Book Value | Q9: OEB | R9: Description | S9: Opening Balance | T9: Additions | V9: Disposals | W9: Closing Balance | Y9: Opening Balance | Z9: Additions | AB9: Disposals | AC9: Closing Balance | AD9: Net Book Value
B10: 1611 | C10: Computer Software (Formally known as Account 1925) | G10: =D10+E10+F10 -> 0 | I10: 0 | L10: =I10+J10+K10 -> 0 | M10: =G10+L10 -> 0 | Q10: 1611 | R10: Computer Software (Formally known as Account 1925) | S10: 0 | W10: =S10+T10+V10 -> 0 | Y10: 0 | AC10: =Y10+Z10+AB10 -> 0 | AD10: =W10+AC10 -> 0
B11: 1612 | C11: Land Rights (Formally known as Account 1906) | G11: =D11+E11+F11 -> 0 | I11: 0 | L11: =I11+J11+K11 -> 0 | M11: =G11+L11 -> 0 | Q11: 1612 | R11: Land Rights (Formally known as Account 1906) | S11: 0 | W11: 0 | Y11: 0 | AC11: =Y11+Z11+AB11 -> 0 | AD11: =W11+AC11 -> 0
B12: 1805 | C12: Land | D12: 245786 | G12: 245786 | I12: 0 | L12: 0 | M12: 245786 | Q12: 1805 | R12: Land | S12: 245786 | W12: 245786 | Y12: 0 | AC12: 0 | AD12: 245786
B13: 1806 | C13: Land Rights | D13: 10971 | G13: 10971 | I13: 0 | L13: 0 | M13: 10971 | Q13: 1806 | R13: Land rights | S13: 10971 | W13: 10971 | Y13: 0 | AC13: 0 | AD13: 10971
B14: 1808 | C14: Buildings | D14: 1117301.59 | G14: 1117301.59 | I14: -1113010.58 | J14: -2807 | L14: -1115817.58 | M14: 1484.01 | Q14: 1808 | R14: Buildings | S14: 1117301.59 | W14: 1117301.59 | Y14: -1113010.58 | Z14: -2807 | AC14: -1115817.58 | AD14: 1484.01
B15: 1810 | C15: Leasehold Improvements | D15: 0 | G15: 0 | I15: 0 | L15: 0 | M15: 0 | Q15: 1810 | R15: Leasehold Improvements | S15: 0 | W15: 0 | Y15: 0 | AC15: 0 | AD15: 0
B16: 1815 | C16: Transformer Station Equipment >50 kV | D16: 0 | G16: 0 | I16: 0 | L16: 0 | M16: 0 | Q16: 1815 | R16: Transformer Station Equipment >50 kV | S16: 0 | W16: 0 | Y16: 0 | AC16: 0 | AD16: 0
B17: 1820 | C17: Distribution Station Equipment <50 kV | D17: 17707464.53 | E17: 173204 | G17: 17880668.53 | I17: -6798861.13 | J17: -551576 | L17: -7350437.13 | M17: 10530231.4 | Q17: 1820 | R17: Distribution Station Equipment <50 kV | S17: 17707464.53 | T17: 173204.46 | W17: 17880668.99 | Y17: -6798861.13 | Z17: -305456.97 | AC17: -7104318.1 | AD17: 10776350.89
B18: 1825 | C18: Storage Battery Equipment | D18: 0 | G18: 0 | I18: 0 | L18: 0 | M18: 0 | Q18: 1825 | R18: Storage Battery Equipment | S18: 0 | W18: 0 | Y18: 0 | AC18: 0
B19: 1830 | C19: Poles, Towers & Fixtures | D19: 26768950.47 | E19: 1984128.54 | G19: 28753079.01 | I19: -11348583.05 | J19: -995045 | L19: -12343628.05 | M19: 16409450.96 | Q19: 1830 | R19: Poles, Towers & Fixtures | S19: 26768950.47 | T19: 1478899.02 | W19: 28247849.49 | Y19: -11348583.05 | Z19: -413075.67 | AC19: -11761658.72 | AD19: 16486190.77
B20: 1835 | C20: Overhead Conductors & Devices | D20: 16827902.01 | E20: 1054000.14 | G20: 17881902.15 | I20: -8136110.89 | J20: -601504 | L20: -8737614.89 | M20: 9144287.26 | Q20: 1835 | R20: Overhead Conductors & Devices | S20: 16827902.01 | T20: 791944.48 | W20: 17619846.49 | Y20: -8136110.89 | Z20: -198317.49 | AC20: -8334428.38 | AD20: 9285418.11
G21: 0 | L21: 0 | M21: 0 | Q21: 1835 | R21: Overhead Conductors & Devices (Switches)
B22: 1840 | C22: Underground Conduit | D22: 20466527.59 | E22: 1216607 | G22: 21683134.59 | I22: -8223079.92 | J22: -807004 | L22: -9030083.92 | M22: 12653050.67 | Q22: 1840 | R22: Underground Conduit | S22: 20466527.59 | T22: 1216606.52 | W22: =S22+T22+V22 -> 21683134.11 | Y22: -8223079.92 | Z22: -111776.7 | AC22: -8334856.62 | AD22: 13348277.49
B23: 1845 | C23: Underground Conductors & Devices | D23: 17706836.45 | E23: 1088431.36 | G23: 18795267.81 | I23: -9818551.8 | J23: -678727 | L23: -10497278.8 | M23: 8297989.01 | Q23: 1845 | R23: Underground Conductors & Devices | S23: 17706836.78 | T23: 886693 | W23: 18593529.78 | Y23: -9818551.66 | Z23: -599068.14 | AC23: -10417619.8 | AD23: 8175909.98
B24: 1850 | C24: Line Transformers | D24: 32381502.08 | E24: 1056692.82 | F24: -135483 | G24: 33302711.9 | I24: -16153946.63 | J24: -1106416 | K24: 99299 | L24: -17161063.63 | M24: 16141648.27 | Q24: 1850 | R24: Line Transformers | S24: 32381502.08 | T24: 933749.09 | V24: -135483 | W24: 33179768.17 | Y24: -16153946.63 | Z24: -425373 | AB24: 99299 | AC24: -16480020.63 | AD24: 16699747.54
B25: 1855 | C25: Services (Overhead & Underground) | D25: 18794812.36 | E25: 120357 | G25: 18915169.36 | I25: -12843086.36 | J25: -602122 | L25: -13445208.36 | M25: 5469961 | Q25: 1855 | R25: Services (Overhead) | S25: 6045627.22 | T25: 107528.64 | W25: 6153155.86 | Y25: -4241051.23 | Z25: -81371.85 | AC25: -4322423.08 | AD25: 1830732.78
G26: 0 | L26: 0 | M26: 0 | Q26: 1855 | R26: Services (Underground) | S26: 12749185.51 | T26: 12827.95 | W26: 12762013.46 | Y26: -8602035.15 | Z26: -355008.11 | AC26: -8957043.26 | AD26: 3804970.2
B27: 1860 | C27: Meters (includes Smart Meters) | D27: 1580036.56 | E27: 6310018.72 | G27: 7890055.28 | I27: -397942.73 | J27: -1947934.05 | K27: 704 | L27: -2345172.78 | M27: 5544882.5 | Q27: 1860 | R27: Meters | S27: 1580036.56 | T27: 6310018.72 | W27: 7890055.28 | Y27: -397942.73 | Z27: -1941590.05 | AB27: 704 | AC27: -2338828.78 | AD27: 5551226.5
C28: Meters (Smart Meters) | D28: 0 | G28: 0 | I28: 0 | L28: 0 | M28: 0 | Q28: 1860 | R28: Meters (Smart Meters) | S28: 0 | T28: 0 | W28: 0 | Y28: 0 | AC28: 0 | AD28: 0
B29: 1905 | C29: Land | D29: 182214.88 | G29: 182214.88 | L29: 0 | M29: 182214.88 | Q29: 1905 | R29: Land | S29: 182214.88 | W29: 182214.88 | Y29: 0 | AC29: 0 | AD29: 182214.88
B30: 1908 | C30: Buildings & Fixtures | D30: 5941575.17 | E30: 299710 | G30: 6241285.17 | I30: -2396272.23 | J30: -122097 | L30: -2518369.23 | M30: 3722915.94 | Q30: 1908 | R30: Buildings & Fixtures | S30: =5941575.17-S32-S33 -> 5749290.17 | W30: 5749290.17 | Y30: =-2396272.23+853+2993 -> -2392426.23 | Z30: -5961.83 | AC30: -2398388.06 | AD30: 3350902.11
B31: 1908 | C31: HVAC | D31: 0 | G31: 0 | L31: 0 | M31: 0 | Q31: 1908 | R31: HVAC | T31: 8700 | W31: 8700 | Y31: 0 | Z31: -200 | AC31: =Y31+Z31+AB31 -> -200 | AD31: =W31+AC31 -> 8500
B32: 1908 | C32: Parking & Paving | D32: 0 | G32: 0 | I32: 0 | L32: 0 | M32: 0 | Q32: 1908 | R32: Parking & Paving | S32: 42644 | T32: 76010 | W32: 118654 | Y32: -853 | Z32: -1603 | AC32: =Y32+Z32+AB32 -> -2456 | AD32: =W32+AC32 -> 116198
B33: 1908 | C33: Roof | D33: 0 | G33: 0 | L33: 0 | M33: 0 | Q33: 1908 | R33: Roof | S33: 149641 | T33: 215000 | W33: 364641 | Y33: -2993 | Z33: -5143 | AC33: =Y33+Z33+AB33 -> -8136 | AD33: =W33+AC33 -> 356505
B34: 1910 | C34: Leasehold Improvements | D34: 0 | G34: 0 | I34: 0 | L34: 0 | M34: 0 | Q34: 1910 | R34: Leasehold Improvements | S34: 0 | W34: 0 | Y34: 0 | AC34: 0 | AD34: 0
B35: 1915 | C35: Office Furniture & Equipment (10 years) | D35: 1032336.03 | E35: 8833 | G35: 1041169.03 | I35: -866935.2 | J35: -29915 | L35: -896850.2 | M35: 144318.83 | Q35: 1915 | R35: Office Furniture & Equipment (10 years) | S35: 1032336.03 | T35: 8833 | W35: 1041169.03 | Y35: -866935.2 | Z35: -29923.21 | AC35: -896858.41 | AD35: 144310.62
B36: 1915 | C36: Office Furniture & Equipment (5 years) | D36: 0 | G36: 0 | I36: 0 | L36: 0 | M36: 0 | Q36: 1915 | R36: Office Furniture & Equipment (5 years) | S36: 0 | W36: 0 | Y36: 0 | AC36: 0 | AD36: 0
B37: 1920 | C37: Computer Equipment - Hardware | D37: 1554329 | E37: 55920 | G37: 1610249 | I37: -1315603 | J37: -74539 | L37: -1390142 | M37: 220107 | Q37: 1920 | R37: Computer Equipment - Hardware | S37: 1554329 | T37: 55920.38 | W37: 1610249.38 | Y37: -1315603.21 | Z37: -100631.02 | AC37: -1416234.23 | AD37: 194015.15
B38: 1920 | C38: Computer Equip.-Hardware(Post Mar. 22/04) | D38: 0 | G38: 0 | I38: 0 | L38: 0 | M38: 0 | Q38: 1920 | R38: Computer Equip.-Hardware(Post Mar. 22/04) | S38: 0 | W38: 0 | Y38: 0 | AC38: 0 | AD38: 0
B39: 1920 | C39: Computer Equip.-Hardware(Post Mar. 19/07) | D39: 0 | G39: 0 | L39: 0 | M39: 0 | Q39: 1920 | R39: Computer Equip.-Hardware(Post Mar. 19/07) | S39: 0 | W39: 0 | Y39: 0 | AC39: 0 | AD39: 0
B40: 1925 | C40: Computer Equip.-Software | D40: 1999572.24 | E40: 130098 | G40: 2129670.24 | I40: -1631888 | J40: -131412 | L40: -1763300 | M40: 366370.24 | Q40: 1925 | R40: Computer Equip.-Software (Application) | S40: 1999572.24 | T40: 86307.34 | W40: 2085879.58 | Y40: -1631888.08 | Z40: -131449.62 | AC40: -1763337.7 | AD40: 322541.88
G41: 0 | L41: 0 | M41: 0 | Q41: 1925 | R41: Computer Equip.-Software (Server) | T41: 43791 | W41: 43791 | AC41: =Y41+Z41+AB41 -> 0 | AD41: =W41+AC41 -> 43791
B42: 1930 | C42: Transportation Equipment | D42: 0 | G42: 0 | L42: 0 | M42: 0 | Q42: 1930 | R42: Transportation Equipment | S42: 0 | W42: 0 | Y42: 0 | AC42: 0 | AD42: 0
B43: 1935 | C43: Stores Equipment | D43: 56186.63 | G43: 56186.63 | I43: -56186.63 | L43: -56186.63 | M43: 0 | Q43: 1935 | R43: Stores Equipment | S43: 56186.63 | W43: 56186.63 | Y43: -56186.63 | AC43: -56186.63 | AD43: 0
B44: 1940 | C44: Tools, Shop & Garage Equipment | D44: 4284 | G44: 4284 | I44: -3427.2 | J44: -428 | L44: -3855.2 | M44: 428.8 | Q44: 1940 | R44: Tools, Shop & Garage Equipment | S44: 4284 | W44: =S44+T44+V44 -> 4284 | Y44: -3427.2 | Z44: -428.4 | AC44: -3855.6 | AD44: 428.4
B45: 1945 | C45: Measurement & Testing Equipment | D45: 20903.01 | G45: 20903.01 | I45: =-16721.2-0.1 -> -16721.3 | J45: -2090 | L45: -18811.3 | M45: 2091.71 | Q45: 1945 | R45: Measurement & Testing Equipment | S45: 20903.01 | W45: 20903.01 | Y45: -16721.2 | Z45: -2090.91 | AC45: -18812.11 | AD45: 2090.9
B46: 1950 | C46: Power Operated Equipment | D46: 0 | G46: 0 | I46: 0 | L46: 0 | M46: 0 | Q46: 1950 | R46: Power Operated Equipment | S46: 0 | W46: 0 | Y46: 0 | AC46: 0 | AD46: 0
B47: 1955 | C47: Communications Equipment | D47: 78103.41 | G47: 78103.41 | I47: =-78103.41 -> -78103.41 | L47: -78103.41 | M47: 0 | Q47: 1955 | R47: Communications Equipment | S47: 78103.41 | W47: 78103.41 | Y47: -78103.41 | AC47: -78103.41 | AD47: 0
B48: 1955 | C48: Communication Equipment (Smart Meters) | D48: 0 | G48: 0 | I48: 0 | L48: 0 | M48: 0 | Q48: 1955 | R48: Communication Equipment (Smart Meters) | S48: 0 | W48: 0 | Y48: 0 | AC48: 0 | AD48: 0
B49: 1960 | C49: Miscellaneous Equipment | D49: 0 | G49: 0 | I49: 0 | L49: 0 | M49: 0 | Q49: 1960 | R49: Miscellaneous Equipment | S49: 0 | W49: 0 | Y49: 0 | AC49: 0 | AD49: 0
B50: 1970 | C50: Load Management Controls Customer Premises | D50: 0 | G50: 0 | I50: 0 | L50: 0 | M50: 0 | Q50: 1970 | R50: Load Management Controls Customer Premises | S50: 0 | W50: 0 | Y50: 0 | AC50: 0 | AD50: 0
B51: 1975 | C51: Load Management Controls Utility Premises | D51: 0 | G51: 0 | I51: 0 | L51: 0 | M51: 0 | Q51: 1975 | R51: Load Management Controls Utility Premises | S51: 0 | W51: 0 | Y51: 0 | AC51: 0 | AD51: 0
B52: 1980 | C52: System Supervisor Equipment | D52: 2337752.34 | E52: 88446 | G52: 2426198.34 | I52: =-1709884.23-0.2 -> -1709884.43 | J52: -84152 | L52: -1794036.43 | M52: 632161.91 | Q52: 1980 | R52: System Supervisor Equipment | S52: 2337752.34 | T52: 88446.41 | W52: 2426198.75 | Y52: -1709884.23 | Z52: -90171.44 | AC52: -1800055.67 | AD52: 626143.08
B53: 1985 | C53: Miscellaneous Fixed Assets | D53: 0 | G53: 0 | I53: 0 | L53: 0 | M53: 0 | Q53: 1985 | R53: Miscellaneous Fixed Assets | S53: 0 | W53: 0 | Y53: 0 | AC53: 0 | AD53: 0
B54: 1990 | C54: Other Tangible Property | D54: 0 | G54: 0 | I54: 0 | L54: 0 | M54: 0 | Q54: 1990 | R54: Other Tangible Property | S54: 0 | W54: 0 | Y54: 0 | AC54: 0 | AD54: 0
B55: 1995 | C55: Contributions & Grants | D55: -29200787.43 | E55: -2239797 | G55: -31440584.43 | I55: 7888758 | J55: 1215209 | L55: 9103967 | M55: -22336617.43 | Q55: 1995 | R55: Contributions & Grants | S55: -29200787.43 | T55: -2239797 | W55: -31440584.43 | Y55: 7888758 | Z55: 612203.21 | AC55: 8500961.21 | AD55: -22939623.22
B56: 2440 | C56: Deferred Revenues | G56: 0 | L56: 0 | M56: 0 | Q56: 2440 | R56: Deferred Revenues | S56: 0 | Y56: 0 | AC56: 0 | AD56: 0
B57: 2075 | C57: Non Rate-Regulated Utility Assets | E57: 91998.19 | G57: 91998.19 | L57: 0 | M57: 91998.19 | Q57: 2075 | R57: Non Rate-Regulated Utility Assets | T57: 91998.19 | W57: =S57+T57+V57 -> 91998.19 | Y57: 0 | AC57: =Y57+Z57+AB57 -> 0 | AD57: =W57-AC57 -> 91998.19
C58: Sub-Total | D58: =SUM(D10:D57) -> 137614559.9 | E58: =SUM(E10:E57) -> 11438647.77 | F58: =SUM(F10:F57) -> -135483 | G58: =SUM(G10:G57) -> 148917724.7 | I58: =SUM(I10:I57) -> -75019436.49 | J58: =SUM(J10:J57) -> -6522559.05 | K58: =SUM(K10:K57) -> 100003 | L58: =SUM(L10:L57) -> -81441992.54 | M58: =SUM(M10:M57) -> 67475732.15 | R58: Sub-Total | S58: =SUM(S10:S57) -> 137614560.6 | T58: =SUM(T10:T57) -> 10346681.2 | V58: =SUM(V10:V57) -> -135483 | W58: =SUM(W10:W57) -> 147825758.8 | Y58: =SUM(Y10:Y57) -> -75019436.36 | Z58: =SUM(Z10:Z57) -> -4189244.2 | AB58: =SUM(AB10:AB57) -> 100003 | AC58: =SUM(AC10:AC57) -> -79108677.56 | AD58: =SUM(AD10:AD57) -> 68717081.26
C59: Less Socialized Renewable Energy Generation Investments (input as negative) | G59: =D59+E59+F59 -> 0 | L59: =I59+J59+K59 -> 0 | M59: =G59+L59 -> 0 | R59: Less Socialized Renewable Energy Generation Investments (input as negative) | W59: =S59+T59+V59 -> 0 | AC59: =Y59+Z59+AB59 -> 0 | AD59: =W59-AC59 -> 0
C60: Less Other Non Rate-Regulated Utility Assets (input as negative) | E60: -91998.19 | G60: =D60+E60+F60 -> -91998.19 | L60: =I60+J60+K60 -> 0 | M60: =G60+L60 -> -91998.19 | R60: Less Other Non Rate-Regulated Utility Assets (input as negative) | T60: -91998.19 | W60: =S60+T60+V60 -> -91998.19 | Y60: 0 | AC60: =Y60+Z60+AB60 -> 0 | AD60: =W60-AC60 -> -91998.19
C61: Total PP&E | D61: =SUM(D58:D60) -> 137614559.9 | E61: =SUM(E58:E60) -> 11346649.58 | F61: =SUM(F58:F60) -> -135483 | G61: =SUM(G58:G60) -> 148825726.5 | I61: =SUM(I58:I60) -> -75019436.49 | J61: =SUM(J58:J60) -> -6522559.05 | K61: =SUM(K58:K60) -> 100003 | L61: =SUM(L58:L60) -> -81441992.54 | M61: =SUM(M58:M60) -> 67383733.96 | R61: Total PP&E | S61: =SUM(S58:S60) -> 137614560.6 | T61: =SUM(T58:T60) -> 10254683.01 | V61: =SUM(V58:V60) -> -135483 | W61: =SUM(W58:W60) -> 147733760.6 | Y61: =SUM(Y58:Y60) -> -75019436.36 | Z61: -4189244.2 | AB61: 100003 | AC61: -79108677.56 | AD61: 68625083.07
G63: Less: Fully Allocated Depreciation | W63: Less: Fully Allocated Depreciation
C64: Transportation | G64: Transportation | W64: Transportation
C65: Stores Equipment | G65: Stores Equipment | W65: Stores Equipment
G66: Net Depreciation | J66: =J61-J64-J65 -> -6522559.05 | W66: Net Depreciation | Z66: =Z61-Z64-Z65 -> -4189244.2
B74: TABLE 2-3 (Appendix 2-BA) | Q74: TABLE 2-4 (Appendix 2-BA)
B75: Fixed Asset Continuity Schedule | Q75: Fixed Asset Continuity Schedule
E77: Accounting Standard | F77: CGAAP | T77: Accounting Standard | V77: RCGAAP
E78: Year | F78: 2014 | T78: Year | V78: 2014
D80: Cost | J80: Accumulated Depreciation | S80: Cost | Z80: Accumulated Depreciation
B81: OEB | C81: Description | D81: Opening Balance | E81: Additions | F81: Disposals | G81: Closing Balance | I81: Opening Balance | J81: Additions | K81: Disposals | L81: Closing Balance | M81: Net Book Value | Q81: OEB | R81: Description | S81: Opening Balance | T81: Additions | U81: Reclassification | V81: Disposals | W81: Closing Balance | Y81: Opening Balance | Z81: Additions | AA81: Reclassification | AB81: Disposals | AC81: Closing Balance | AD81: Net Book Value
B82: 1611 | C82: Computer Software (Formally known as Account 1925) | G82: =D82+E82+F82 -> 0 | L82: =I82+J82+K82 -> 0 | M82: =G82+L82 -> 0 | Q82: 1611 | R82: Computer Software (Formally known as Account 1925) | S82: =W10 -> 0 | W82: =S82+U82+T82+V82 -> 0 | Y82: =AC10 -> 0 | AC82: =Y82+Z82+AA82+AB82 -> 0 | AD82: =W82+AC82 -> 0
B83: 1612 | C83: Land Rights (Formally known as Account 1906) | G83: =D83+E83+F83 -> 0 | L83: =I83+J83+K83 -> 0 | M83: =G83+L83 -> 0 | Q83: 1612 | R83: Land Rights (Formally known as Account 1906) | S83: =W11 -> 0 | W83: =S83+U83+T83+V83 -> 0 | Y83: =AC11 -> 0 | AC83: =Y83+Z83+AA83+AB83 -> 0 | AD83: =W83+AC83 -> 0
B84: 1805 | C84: Land | D84: =G12 -> 245786 | G84: =D84+E84+F84 -> 245786 | L84: 0 | M84: 245786 | Q84: 1805 | R84: Land | S84: =W12 -> 245786 | W84: 245786 | Y84: =AC12 -> 0 | AC84: 0 | AD84: 245786
B85: 1806 | C85: Land Rights | D85: =G13 -> 10971 | G85: =D85+E85+F85 -> 10971 | L85: 0 | M85: 10971 | Q85: 1806 | R85: Land rights | S85: =W13 -> 10971 | W85: 10971 | Y85: =AC13 -> 0 | AC85: 0 | AD85: 10971
B86: 1808 | C86: Buildings | D86: =G14 -> 1117301.59 | G86: 1117301.59 | I86: =L14 -> -1115817.58 | J86: -1484 | L86: -1117301.58 | M86: 0.01000000001 | Q86: 1808 | R86: Buildings | S86: =W14 -> 1117301.59 | W86: 1117301.59 | Y86: =AC14 -> -1115817.58 | AC86: -1115817.58 | AD86: 1484.01
B87: 1810 | C87: Leasehold Improvements | D87: =G15 -> 0 | G87: 0 | L87: 0 | M87: 0 | Q87: 1810 | R87: Leasehold Improvements | S87: =W15 -> 0 | W87: 0 | Y87: =AC15 -> 0 | AC87: 0 | AD87: 0
B88: 1815 | C88: Transformer Station Equipment >50 kV | D88: =G16 -> 0 | G88: 0 | L88: 0 | M88: 0 | Q88: 1815 | R88: Transformer Station Equipment >50 kV | S88: =W16 -> 0 | W88: 0 | Y88: =AC16 -> 0 | AC88: 0 | AD88: 0
B89: 1820 | C89: Distribution Station Equipment <50 kV | D89: =G17 -> 17880668.53 | E89: 104935.41 | F89: -59985 | G89: 17925618.94 | I89: =L17 -> -7350437.13 | J89: -556211.54 | K89: 59985 | L89: -7846663.67 | M89: 10078955.27 | Q89: 1820 | R89: Distribution Station Equipment <50 kV | S89: =W17 -> 17880668.99 | T89: 104934 | V89: -59985 | W89: 17925617.99 | Y89: =AC17 -> -7104318.1 | Z89: -306648 | AB89: 59985 | AC89: -7350981.1 | AD89: 10574636.89
B90: 1825 | C90: Storage Battery Equipment | D90: =G18 -> 0 | G90: 0 | L90: 0 | M90: 0 | Q90: 1825 | R90: Storage Battery Equipment | S90: =W18 -> 0 | W90: 0 | Y90: =AC18 -> 0 | AD90: 0
B91: 1830 | C91: Poles, Towers & Fixtures | D91: =G19 -> 28753079.01 | E91: 2155792.34 | G91: 30908871.35 | I91: =L19 -> -12343628.05 | J91: -1045299.35 | L91: -13388927.4 | M91: 17519943.95 | Q91: 1830 | R91: Poles, Towers & Fixtures | S91: =W19 -> 28247849.49 | T91: 1865319 | W91: 30113168.49 | Y91: =AC19 -> -11761658.72 | Z91: -449957 | AC91: -12211615.72 | AD91: 17901552.77
B92: 1835 | C92: Overhead Conductors & Devices | D92: =G20 -> 17881902.15 | E92: 1208676.24 | G92: 19090578.39 | I92: =L20 -> -8737614.89 | J92: -625717.71 | L92: -9363332.6 | M92: 9727245.79 | Q92: 1835 | R92: Overhead Conductors & Devices | S92: =W20 -> 17619846.49 | T92: 856712 | U92: -5166891 | W92: 13309667.49 | Y92: =AC20 -> -8334428.38 | Z92: -127549 | AA92: 1929922 | AC92: -6532055.38 | AD92: 6777612.11
D93: =G21 -> 0 | G93: 0 | L93: 0 | M93: 0 | Q93: 1835 | R93: Overhead Conductors & Devices (Switches) | S93: =W21 -> 0 | T93: 199550 | U93: 5166891 | W93: 5366441 | Y93: =AC21 -> 0 | Z93: -157029 | AA93: -1929922 | AC93: -2086951 | AD93: 3279490
B94: 1840 | C94: Underground Conduit | D94: =G22 -> 21683134.59 | E94: -9290511.13 | G94: 12392623.46 | I94: =L22 -> -9030083.92 | J94: -804662.04 | L94: -9834745.96 | M94: 2557877.5 | Q94: 1840 | R94: Underground Conduit | S94: =W22 -> 21683134.11 | T94: 725628 | U94: -10016138 | W94: 12392624.11 | Y94: =AC22 -> -8334856.62 | Z94: -287360 | AA94: 2805792 | AC94: -5816424.62 | AD94: 6576199.49
B95: 1845 | C95: Underground Conductors & Devices | D95: =G23 -> 18795267.81 | E95: 12452175.15 | G95: 31247442.96 | I95: =L23 -> -10497278.8 | J95: -677517.29 | L95: -11174796.09 | M95: 20072646.87 | Q95: 1845 | R95: Underground Conductors & Devices-db | S95: =W23 -> 18593529.78 | T95: 1630102 | U95: 10573726 | W95: 30797357.78 | Y95: =AC23 -> -10417619.8 | Z95: -638336 | AA95: -2961988 | AC95: -14017943.8 | AD95: 16779413.98
B96: 1850 | C96: Line Transformers | D96: =G24 -> 33302711.9 | E96: -5259429.88 | F96: -279267.94 | G96: 27764014.08 | I96: =L24 -> -17161063.63 | J96: -1081391.53 | K96: 241611.55 | L96: -18000843.61 | M96: 9763170.47 | Q96: 1850 | R96: Line Transformers | S96: =W24 -> 33179768.17 | T96: 1182092 | U96: -6516504 | V96: -279268 | W96: 27566088.17 | Y96: =AC24 -> -16480020.63 | Z96: -659372 | AA96: 1825450 | AB96: 241612 | AC96: -15072330.63 | AD96: 12493757.54
B97: 1855 | C97: Services (Overhead and Underground) | D97: =G25 -> 18915169.36 | E97: 6466096.31 | G97: 25381265.67 | I97: =L25 -> -13445208.36 | J97: -549515.18 | L97: -13994723.54 | M97: 11386542.13 | Q97: 1855 | R97: Services (Overhead) | S97: =W25 -> 6153155.86 | T97: 84556 | W97: 6237711.86 | Y97: =AC25 -> -4322423.08 | Z97: -67721 | AC97: -4390144.08 | AD97: 1847567.78
D98: =G26 -> 0 | G98: 0 | L98: 0 | M98: 0 | Q98: 1855 | R98: Services (Underground) | S98: =W26 -> 12762013.46 | T98: 422624 | U98: 5958916 | W98: 19143553.46 | Y98: =AC26 -> -8957043.26 | Z98: -404098 | AA98: -1669254 | AC98: -11030395.26 | AD98: 8113158.2
B99: 1860 | C99: Meters | D99: =G27 -> 7890055.28 | E99: 267581.94 | F99: -67289.14 | G99: 8090348.08 | I99: =L27 -> -2345172.78 | J99: -715283.64 | K99: 38096.89 | L99: -3022359.53 | M99: 5067988.55 | Q99: 1860 | R99: Meters | S99: =W27 -> 7890055.28 | T99: 267583 | V99: -67289 | W99: 8090349.28 | Y99: =AC27 -> -2338828.78 | Z99: -715284 | AB99: 38097 | AC99: -3016015.78 | AD99: 5074333.5
B100: 1905 | C100: Land | D100: =G29 -> 182214.88 | G100: 182214.88 | L100: 0 | M100: 182214.88 | Q100: 1905 | R100: Land | S100: =W29 -> 182214.88 | W100: 182214.88 | Y100: =AC29 -> 0 | AC100: 0 | AD100: 182214.88
B101: 1908 | C101: Buildings & Fixtures | D101: =G30 -> 6241285.17 | E101: 545228.59 | G101: 6786513.76 | I101: =L30 -> -2518369.23 | J101: -108537.82 | L101: -2626907.05 | M101: 4159606.71 | Q101: 1908 | R101: Buildings & Fixtures | S101: =W30 -> 5749290.17 | T101: 545229 | W101: 6294519.17 | Y101: =AC30 -> -2398388.06 | Z101: -120937 | AC101: -2519325.06 | AD101: 3775194.11
B102: 1908 | C102: HVAC | D102: =G31 -> 0 | G102: 0 | J102: -435 | L102: -435 | M102: -435 | Q102: 1908 | R102: HVAC | S102: =W31 -> 8700 | W102: =S102+U102+T102+V102 -> 8700 | Y102: =AC31 -> -200 | Z102: -870 | AC102: -1070 | AD102: 7630
B103: 1908 | C103: Parking & Paving | D103: =G32 -> 0 | G103: 0 | J103: -6194 | L103: -6194 | M103: -6194 | Q103: 1908 | R103: Parking & Paving | S103: =W32 -> 118654 | W103: 118654 | Y103: =AC32 -> -2456 | Z103: -6133 | AC103: -8589 | AD103: 110065
B104: 1908 | C104: Roof | D104: =G33 -> 0 | G104: 0 | J104: -19070 | L104: -19070 | M104: -19070 | Q104: 1908 | R104: Roof | S104: =W33 -> 364641 | W104: 364641 | Y104: =AC33 -> -8136 | Z104: -18896 | AC104: -27032 | AD104: 337609
B105: 1910 | C105: Leasehold Improvements | D105: =G34 -> 0 | G105: 0 | L105: 0 | M105: 0 | Q105: 1910 | R105: Leasehold Improvements | S105: =W34 -> 0 | W105: 0 | Y105: =AC34 -> 0 | AC105: 0 | AD105: 0
B106: 1915 | C106: Office Furniture & Equipment (10 years) | D106: =G35 -> 1041169.03 | E106: 46724.83 | G106: 1087893.86 | I106: =L35 -> -896850.2 | J106: -30220.39 | L106: -927070.59 | M106: 160823.27 | Q106: 1915 | R106: Office Furniture & Equipment (10 years) | S106: =W35 -> 1041169.03 | T106: 46725 | W106: 1087894.03 | Y106: =AC35 -> -896858.41 | Z106: -30220 | AC106: -927078.41 | AD106: 160815.62
B107: 1915 | C107: Office Furniture & Equipment (5 years) | D107: =G36 -> 0 | G107: 0 | L107: 0 | M107: 0 | Q107: 1915 | R107: Office Furniture & Equipment (5 years) | S107: =W36 -> 0 | W107: 0 | Y107: =AC36 -> 0 | AC107: 0 | AD107: 0
B108: 1920 | C108: Computer Equipment - Hardware | D108: =G37 -> 1610249 | E108: 172434.77 | G108: 1782683.77 | I108: =L37 -> -1390142 | J108: -84416.62 | L108: -1474558.62 | M108: 308125.15 | Q108: 1920 | R108: Computer Equipment - Hardware | S108: =W37 -> 1610249.38 | T108: 172435 | W108: 1782684.38 | Y108: =AC37 -> -1416234.23 | Z108: -101555 | AC108: -1517789.23 | AD108: 264895.15
B109: 1920 | C109: Computer Equip.-Hardware(Post Mar. 22/04) | D109: =G38 -> 0 | G109: =D109+E109+F109 -> 0 | L109: =I109+J109+K109 -> 0 | M109: 0 | Q109: 1920 | R109: Computer Equip.-Hardware(Post Mar. 22/04) | S109: =W38 -> 0 | W109: 0 | Y109: =AC38 -> 0 | AC109: 0 | AD109: 0
B110: 1920 | C110: Computer Equip.-Hardware(Post Mar. 19/07) | D110: =G39 -> 0 | G110: 0 | L110: 0 | M110: 0 | Q110: 1920 | R110: Computer Equip.-Hardware(Post Mar. 19/07) | S110: =W39 -> 0 | W110: 0 | Y110: =AC39 -> 0 | AC110: 0 | AD110: 0
B111: 1925 | C111: Computer Equip.-Software | D111: =G40 -> 2129670.24 | E111: 261322.83 | G111: 2390993.07 | I111: =L40 -> -1763300 | J111: -134276.47 | L111: -1897576.47 | M111: 493416.6 | Q111: 1925 | R111: Computer Equip.-Software (Application) | S111: =W40 -> 2085879.58 | T111: 219790.5 | W111: 2305670.08 | Y111: =AC40 -> -1763337.7 | Z111: -127449.16 | AC111: -1890786.86 | AD111: 414883.22
D112: =G41 -> 0 | G112: 0 | L112: =I112+J112+K112 -> 0 | M112: 0 | Q112: 1925 | R112: Computer Equip.-Software (Server) | S112: =W41 -> 43791 | T112: 41532 | W112: 85323 | Y112: =AC41 -> 0 | Z112: -21518.6 | AC112: -21518.6 | AD112: 63804.4
B113: 1930 | C113: Transportation Equipment | D113: =G42 -> 0 | G113: 0 | L113: 0 | M113: 0 | Q113: 1930 | R113: Transportation Equipment | S113: =W42 -> 0 | W113: 0 | Y113: =AC42 -> 0 | AC113: 0 | AD113: 0
B114: 1935 | C114: Stores Equipment | D114: =G43 -> 56186.63 | G114: 56186.63 | I114: =L43 -> -56186.63 | L114: -56186.63 | M114: 0 | Q114: 1935 | R114: Stores Equipment | S114: =W43 -> 56186.63 | W114: 56186.63 | Y114: =AC43 -> -56186.63 | AC114: -56186.63 | AD114: 0
B115: 1940 | C115: Tools, Shop & Garage Equipment | D115: =G44 -> 4284 | G115: 4284 | I115: =L44 -> -3855.2 | J115: -428.4 | L115: -4283.6 | M115: 0.4 | Q115: 1940 | R115: Tools, Shop & Garage Equipment | S115: =W44 -> 4284 | W115: 4284 | Y115: =AC44 -> -3855.6 | Z115: -428 | AC115: -4283.6 | AD115: 0.4
B116: 1945 | C116: Measurement & Testing Equipment | D116: =G45 -> 20903.01 | G116: 20903.01 | I116: =L45 -> -18811.3 | J116: -2090 | L116: -20901.3 | M116: 1.71 | Q116: 1945 | R116: Measurement & Testing Equipment | S116: =W45 -> 20903.01 | W116: 20903.01 | Y116: =AC45 -> -18812.11 | Z116: -2091 | AC116: -20903.11 | AD116: -0.1
B117: 1950 | C117: Power Operated Equipment | D117: =G46 -> 0 | G117: 0 | L117: 0 | M117: 0 | Q117: 1950 | R117: Power Operated Equipment | S117: =W46 -> 0 | W117: 0 | Y117: =AC46 -> 0 | AC117: 0 | AD117: 0
B118: 1955 | C118: Communications Equipment | D118: =G47 -> 78103.41 | G118: 78103.41 | I118: =L47 -> -78103.41 | L118: -78103.41 | M118: 0 | Q118: 1955 | R118: Communications Equipment | S118: =W47 -> 78103.41 | W118: =S118+U118+T118+V118 -> 78103.41 | Y118: =AC47 -> -78103.41 | AC118: -78103.41 | AD118: 0
B119: 1955 | C119: Communication Equipment (Smart Meters) | D119: =G48 -> 0 | G119: 0 | L119: 0 | M119: 0 | Q119: 1955 | R119: Communication Equipment (Smart Meters) | S119: =W48 -> 0 | W119: 0 | Y119: =AC48 -> 0 | AC119: 0 | AD119: 0
B120: 1960 | C120: Miscellaneous Equipment | D120: =G49 -> 0 | G120: 0 | L120: 0 | M120: 0 | Q120: 1960 | R120: Miscellaneous Equipment | S120: =W49 -> 0 | W120: 0 | Y120: =AC49 -> 0 | AC120: 0 | AD120: 0
B121: 1970 | C121: Load Management Controls Customer Premises | D121: =G50 -> 0 | G121: 0 | L121: 0 | M121: 0 | Q121: 1970 | R121: Load Management Controls Customer Premises | S121: =W50 -> 0 | W121: 0 | Y121: =AC50 -> 0 | AC121: 0 | AD121: 0
B122: 1975 | C122: Load Management Controls Utility Premises | D122: =G51 -> 0 | G122: 0 | L122: 0 | M122: 0 | Q122: 1975 | R122: Load Management Controls Utility Premises | S122: =W51 -> 0 | W122: 0 | Y122: =AC51 -> 0 | AC122: 0 | AD122: 0
B123: 1980 | C123: System Supervisor Equipment | D123: =G52 -> 2426198.34 | E123: 65321.77 | G123: 2491520.11 | I123: =L52 -> -1794036.43 | J123: -89278.99 | L123: -1883315.42 | M123: 608204.69 | Q123: 1980 | R123: System Supervisor Equipment | S123: =W52 -> 2426198.75 | T123: 65322 | W123: 2491520.75 | Y123: =AC52 -> -1800055.67 | Z123: -105542 | AC123: -1905597.67 | AD123: 585923.08
B124: 1985 | C124: Miscellaneous Fixed Assets | D124: =G53 -> 0 | G124: 0 | L124: 0 | M124: 0 | Q124: 1985 | R124: Miscellaneous Fixed Assets | S124: =W53 -> 0 | W124: 0 | Y124: =AC53 -> 0 | AC124: 0 | AD124: 0
B125: 1990 | C125: Other Tangible Property | D125: =G54 -> 0 | G125: 0 | L125: 0 | M125: 0 | Q125: 1990 | R125: Other Tangible Property | S125: =W54 -> 0 | W125: 0 | Y125: =AC54 -> 0 | AC125: 0 | AD125: 0
B126: 1995 | C126: Contributions & Grants | D126: =G55 -> -31440584.43 | E126: -2897207 | G126: -34337791.43 | I126: =L55 -> 9103967 | J126: 1317949.41 | L126: 10421916.41 | M126: -23915875.02 | Q126: 1995 | R126: Contributions & Grants | S126: =W55 -> -31440584.43 | T126: -2897207 | W126: -34337791.43 | Y126: =AC55 -> 8500961.21 | Z126: 677345 | AC126: 9178306.21 | AD126: -25159485.22
B127: 2440 | C127: Deferred Revenues | D127: =G56 -> 0 | G127: 0 | L127: 0 | M127: 0 | Q127: 2440 | R127: Deferred Revenues | S127: =W56 -> 0 | W127: 0 | Y127: =AC56 -> 0 | AC127: 0 | AD127: 0
B128: 2075 | C128: Non Rate-Regulated Utility Assets | D128: =G57 -> 91998.19 | E128: 293708 | G128: 385706.19 | I128: =L57 -> 0 | J128: -9643 | L128: =I128+J128+K128 -> -9643 | M128: =G128+L128 -> 376063.19 | Q128: 2075 | R128: Non Rate-Regulated Utility Assets | S128: =W57 -> 91998.19 | T128: 293708 | W128: 385706.19 | Y128: =AC57 -> 0 | Z128: -9643 | AC128: -9643 | AD128: 376063.19
C129: Sub-Total | D129: =SUM(D82:D128) -> 148917724.7 | E129: =SUM(E82:E128) -> 6592850.17 | F129: =SUM(F82:F128) -> -406542.08 | G129: =SUM(G82:G128) -> 155104032.8 | I129: =SUM(I82:I128) -> -81441992.54 | J129: =SUM(J82:J128) -> -5223723.56 | K129: =SUM(K82:K128) -> 339693.44 | L129: =SUM(L82:L128) -> -86326022.66 | M129: =SUM(M82:M128) -> 68778010.12 | R129: Sub-Total | S129: =SUM(S82:S128) -> 147825758.8 | T129: =SUM(T82:T128) -> 5826634.5 | U129: =SUM(U82:U128) -> 0 | V129: =SUM(V82:V128) -> -406542 | W129: =SUM(W82:W128) -> 153245851.3 | Y129: =SUM(Y82:Y128) -> -79108677.56 | Z129: -3681291.76 | AA129: 0 | AB129: 339694 | AC129: -82450275.32 | AD129: 70795576
C130: Less Socialized Renewable Energy Generation Investments (input as negative) | G130: =D130+E130+F130 -> 0 | L130: =I130+J130+K130 -> 0 | M130: =G130+L130 -> 0 | R130: Less Socialized Renewable Energy Generation Investments (input as negative)
C131: Less Other Non Rate-Regulated Utility Assets (input as negative) | D131: -91998 | E131: -293707.56 | G131: =D131+E131+F131 -> -385705.56 | I131: 0 | J131: 9643 | L131: =I131+J131+K131 -> 9643 | M131: =G131+L131 -> -376062.56 | R131: Less Other Non Rate-Regulated Utility Assets (input as negative) | S131: =W60 -> -91998.19 | T131: -293707.56 | W131: =S131+U131+T131+V131 -> -385705.75 | Y131: =AC60 -> 0 | Z131: =-Z128 -> 9643 | AC131: =Y131+Z131+AA131+AB131 -> 9643 | AD131: =W131+AC131 -> -376062.75
C132: Total PP&E | D132: =SUM(D129:D131) -> 148825726.7 | E132: =SUM(E129:E131) -> 6299142.61 | F132: =SUM(F129:F131) -> -406542.08 | G132: =SUM(G129:G131) -> 154718327.2 | I132: =SUM(I129:I131) -> -81441992.54 | J132: =SUM(J129:J131) -> -5214080.56 | K132: =SUM(K129:K131) -> 339693.44 | L132: =SUM(L129:L131) -> -86316379.66 | M132: =SUM(M129:M131) -> 68401947.56 | R132: Total PP&E | S132: =SUM(S129:S131) -> 147733760.6 | T132: =SUM(T129:T131) -> 5532926.94 | V132: =SUM(V129:V131) -> -406542 | W132: =SUM(W129:W131) -> 152860145.6 | Y132: =SUM(Y129:Y131) -> -79108677.56 | Z132: =SUM(Z129:Z131) -> -3671648.76 | AB132: =SUM(AB129:AB131) -> 339694 | AC132: =SUM(AC129:AC131) -> -82440632.32 | AD132: =SUM(AD129:AD131) -> 70419513.25
G134: Less: Fully Allocated Depreciation | W134: Less: Fully Allocated Depreciation
G135: Transportation | W135: Transportation
G136: Stores Equipment | W136: Stores Equipment
G137: Net Depreciation | J137: =J132-J135-J136 -> -5214080.56 | W137: Net Depreciation | Z137: =Z132-Z135-Z136 -> -3671648.76
B143: TABLE 2-5 (Appendix 2-BA) | Q143: TABLE 2-6 (Appendix 2-BA)
B144: Fixed Asset Continuity Schedule | Q144: Fixed Asset Continuity Schedule
E146: Accounting Standard | F146: CGAAP | T146: Accounting Standard | V146: MIFRS
E147: Year | F147: 2015 | T147: Year | V147: 2015
D149: Cost | J149: Accumulated Depreciation | S149: Cost | Z149: Accumulated Depreciation
B150: OEB | C150: Description | D150: Opening Balance | E150: Additions | F150: Disposals | G150: Closing Balance | I150: Opening Balance | J150: Additions | K150: Disposals | L150: Closing Balance | M150: Net Book Value | Q150: OEB | R150: Description | S150: Opening Balance | T150: Additions | U150: Reclassification | V150: Disposals | W150: Closing Balance | Y150: Opening Balance | Z150: Additions | AA150: Reclassification | AB150: Disposals | AC150: Closing Balance | AD150: Net Book Value
B151: 1611 | C151: Computer Software (Formally known as Account 1925) | G151: =D151+E151+F151 -> 0 | L151: =I151+J151+K151 -> 0 | M151: =G151+L151 -> 0 | Q151: 1611 | R151: Computer Software (Formally known as Account 1925) | S151: =W82 -> 0 | W151: =S151+U151+T151+V151 -> 0 | Y151: =AC82 -> 0 | AC151: =Y151+Z151+AA151+AB151 -> 0
B152: 1612 | C152: Land Rights (Formally known as Account 1906) | G152: =D152+E152+F152 -> 0 | L152: =I152+J152+K152 -> 0 | M152: =G152+L152 -> 0 | Q152: 1612 | R152: Land Rights (Formally known as Account 1906) | S152: 0 | W152: 0 | Y152: 0 | AC152: 0 | AD152: =W152+AC152 -> 0
B153: 1805 | C153: Land | D153: =G84 -> 245786 | G153: =D153+E153+F153 -> 245786 | L153: 0 | M153: 245786 | Q153: 1805 | R153: Land | S153: 245786 | W153: 245786 | Y153: 0 | AC153: 0 | AD153: 245786
B154: 1806 | C154: Land Rights | D154: 10971 | G154: =D154+E154+F154 -> 10971 | L154: 0 | M154: 10971 | Q154: 1806 | R154: Land rights | S154: 10971 | W154: 10971 | Y154: 0 | AC154: 0 | AD154: 10971
B155: 1808 | C155: Buildings | D155: 1117301.59 | G155: 1117301.59 | I155: =L86 -> -1117301.58 | L155: -1117301.58 | M155: 0.01000000001 | Q155: 1808 | R155: Buildings | S155: 1117301.59 | W155: 1117301.59 | Y155: -1115817.58 | AC155: -1115817.58 | AD155: 1484.01
B156: 1810 | C156: Leasehold Improvements | D156: 0 | G156: 0 | L156: 0 | M156: 0 | Q156: 1810 | R156: Leasehold Improvements | S156: 0 | W156: 0 | Y156: 0 | AC156: 0 | AD156: 0
B157: 1815 | C157: Transformer Station Equipment >50 kV | D157: 0 | G157: 0 | L157: 0 | M157: 0 | Q157: 1815 | R157: Transformer Station Equipment >50 kV | S157: 0 | W157: 0 | Y157: 0 | AC157: 0 | AD157: 0
B158: 1820 | C158: Distribution Station Equipment <50 kV | D158: 17925618.94 | E158: 103339.57 | F158: -94500 | G158: 17934458.51 | I158: =L89 -> -7846663.67 | J158: -556724.5603 | K158: 39930 | L158: -8363458.23 | M158: 9571000.28 | Q158: 1820 | R158: Distribution Station Equipment <50 kV | S158: 17925617.99 | T158: 75350 | V158: -94500 | W158: 17906467.99 | Y158: -7350981.1 | Z158: -308650.09 | AB158: 39930 | AC158: -7619701.19 | AD158: 10286766.8
B159: 1825 | C159: Storage Battery Equipment | D159: 0 | G159: 0 | J159: 0 | L159: 0 | M159: 0 | Q159: 1825 | R159: Storage Battery Equipment | S159: 0 | W159: 0 | Y159: 0 | AC159: 0 | AD159: 0
B160: 1830 | C160: Poles, Towers & Fixtures | D160: 30908871.35 | E160: 5380994.43 | G160: 36289865.78 | I160: =L91 -> -13388927.4 | J160: -1124633.237 | L160: -14513560.64 | M160: 21776305.14 | Q160: 1830 | R160: Poles, Towers & Fixtures | S160: 30113168.49 | T160: 5142006.51 | W160: 35255175 | Y160: -12211615.72 | Z160: -514117.01 | AC160: -12725732.73 | AD160: 22529442.27
B161: 1835 | C161: Overhead Conductors & Devices | D161: 19090578.39 | E161: 1930031.94 | G161: 21020610.33 | I161: =L92 -> -9363332.6 | J161: -606406.3888 | L161: -9969738.989 | M161: 11050871.34 | Q161: 1835 | R161: Overhead Conductors & Devices | S161: 13309667.49 | T161: 1802054.9 | W161: 15111722.39 | Y161: -6532055.38 | Z161: -310886.18 | AC161: -6842941.56 | AD161: 8268780.83
D162: 0 | G162: 0 | J162: 0 | L162: 0 | M162: 0 | Q162: 1835 | R162: Overhead Conductors & Devices (Switches) | S162: 5366441 | W162: 5366441 | Y162: -2086951 | AC162: -2086951 | AD162: 3279490
B163: 1840 | C163: Underground Conduit | D163: 12392623.46 | E163: 4382830.36 | G163: 16775453.82 | I163: =L94 -> -9834745.96 | J163: -899249.7349 | L163: -10733995.69 | M163: 6041458.125 | Q163: 1840 | R163: Underground Conduit | S163: 12392624.11 | T163: 4229316.14 | W163: 16621940.25 | Y163: -5816424.62 | Z163: -326444.72 | AC163: -6142869.34 | AD163: 10479070.91
B164: 1845 | C164: Underground Conductors & Devices | D164: 31247442.96 | E164: 1879990.69 | G164: 33127433.65 | I164: =L95 -> -11174796.09 | J164: -764485.7463 | L164: -11939281.84 | M164: 21188151.81 | Q164: 1845 | R164: Underground Conductors & Devices-db | S164: 30797357.78 | T164: 1693574.25 | W164: 32490932.03 | Y164: -14017943.8 | Z164: -623392.94 | AC164: -14641336.74 | AD164: 17849595.29
B165: 1850 | C165: Line Transformers | D165: 27764014.08 | E165: 1554043.18 | F165: -280152 | G165: 29037905.26 | I165: =L96 -> -18000843.61 | J165: -1094747.375 | K165: 141321.57 | L165: -18954269.42 | M165: 10083635.84 | Q165: 1850 | R165: Line Transformers | S165: 27566088.17 | T165: 1431231.5 | V165: -280152 | W165: 28717167.67 | Y165: -15072330.63 | Z165: -690734.52 | AB165: 141321.57 | AC165: -15621743.58 | AD165: 13095424.09
B166: 1855 | C166: Services (Overhead and Underground) | D166: 25381265.67 | E166: 612755.37 | G166: 25994021.04 | I166: =L97 -> -13994723.54 | J166: -546400.7986 | L166: -14541124.34 | M166: 11452896.7 | Q166: 1855 | R166: Services (Overhead) | S166: 6237711.86 | T166: 137645.74 | W166: 6375357.6 | Y166: -4390144.08 | Z166: -70049.16 | AC166: -4460193.24 | AD166: 1915164.36
D167: 0 | G167: 0 | J167: 0 | L167: 0 | M167: 0 | Q167: 1855 | R167: Services (Underground) | S167: 19143553.46 | T167: 430026 | W167: 19573579.46 | Y167: -11030395.26 | Z167: -360814 | AC167: -11391209.26 | AD167: 8182370.2
B168: 1860 | C168: Meters | D168: 8090348.08 | E168: 231151.5 | G168: 8321499.58 | I168: =L99 -> -3022359.53 | J168: -627946.56 | L168: -3650306.09 | M168: 4671193.49 | Q168: 1860 | R168: Meters | S168: 8090349.28 | T168: 231151.5 | W168: 8321500.78 | Y168: -3016015.78 | Z168: -627859.7 | AC168: -3643875.48 | AD168: 4677625.3
B169: 1905 | C169: Land | D169: 182214.88 | E169: 0 | G169: 182214.88 | I169: 0 | J169: 0 | L169: 0 | M169: 182214.88 | Q169: 1905 | R169: Land | S169: 182214.88 | T169: 0 | W169: 182214.88 | Y169: 0 | AC169: 0 | AD169: 182214.88
B170: 1908 | C170: Buildings & Fixtures | D170: 6786513.76 | E170: -3524.7 | G170: 6782989.06 | I170: -2626907.05 | J170: -128960.16 | L170: -2755867.21 | M170: 4027121.85 | Q170: 1908 | R170: Buildings & Fixtures | S170: 6294519.17 | T170: -3524.7 | W170: 6290994.47 | Y170: -2519325.06 | Z170: -126353.6375 | AC170: -2645678.698 | AD170: 3645315.772
B171: 1908 | C171: HVAC | D171: 0 | E171: 128536.25 | G171: 128536.25 | I171: -435 | J171: -6861.81 | L171: -7296.81 | M171: 121239.44 | Q171: 1908 | R171: HVAC | S171: 8700 | T171: 128536.25 | W171: =S171+U171+T171+V171 -> 137236.25 | Y171: -1070 | Z171: -7296.8125 | AC171: -8366.8125 | AD171: 128869.4375
B172: 1908 | C172: Parking & Paving | D172: 0 | E172: 59785 | G172: 59785 | I172: -6194 | J172: -8040.63 | L172: -14234.63 | M172: 45550.37 | Q172: 1908 | R172: Parking & Paving | S172: 118654 | T172: 59785 | W172: =S172+U172+T172+V172 -> 178439 | Y172: -8589 | Z172: -7628 | AC172: -16217 | AD172: 162222
B173: 1908 | C173: Roof | D173: 0 | E173: 0 | G173: 0 | I173: -19070 | J173: -20156 | L173: -39226 | M173: -39226 | Q173: 1908 | R173: Roof | S173: 364641 | T173: 0 | W173: 364641 | Y173: -27032 | Z173: -18896 | AC173: -45928 | AD173: 318713
B174: 1910 | C174: Leasehold Improvements | D174: 0 | G174: 0 | I174: 0 | J174: 0 | L174: 0 | M174: 0 | Q174: 1910 | R174: Leasehold Improvements | S174: 0 | W174: 0 | Y174: 0 | AC174: 0 | AD174: 0
B175: 1915 | C175: Office Furniture & Equipment (10 years) | D175: 1087893.86 | E175: 98495.56 | G175: 1186389.42 | I175: -927070.59 | J175: -34835.768 | L175: -961906.358 | M175: 224483.062 | Q175: 1915 | R175: Office Furniture & Equipment (10 years) | S175: 1087894.03 | T175: 98495.56 | W175: 1186389.59 | Y175: -927078.41 | Z175: -34835.26 | AC175: -961913.67 | AD175: 224475.92
B176: 1915 | C176: Office Furniture & Equipment (5 years) | D176: 0 | G176: 0 | I176: 0 | J176: 0 | L176: 0 | M176: 0 | Q176: 1915 | R176: Office Furniture & Equipment (5 years) | S176: 0 | W176: 0 | Y176: 0 | AC176: 0 | AD176: 0
B177: 1920 | C177: Computer Equipment - Hardware | D177: 1782683.77 | E177: 98876.78 | G177: 1881560.55 | I177: -1474558.62 | J177: -104220.77 | L177: -1578779.39 | M177: 302781.16 | Q177: 1920 | R177: Computer Equipment - Hardware | S177: 1782684.38 | T177: 98876.78 | W177: 1881561.16 | Y177: -1517789.23 | Z177: -125230.86 | AC177: -1643020.09 | AD177: 238541.07
B178: 1920 | C178: Computer Equip.-Hardware(Post Mar. 22/04) | D178: 0 | G178: =D178+E178+F178 -> 0 | I178: 0 | J178: 0 | L178: =I178+J178+K178 -> 0 | M178: 0 | Q178: 1920 | R178: Computer Equip.-Hardware(Post Mar. 22/04) | S178: 0 | W178: 0 | Y178: 0 | AC178: 0 | AD178: 0
B179: 1920 | C179: Computer Equip.-Hardware(Post Mar. 19/07) | D179: 0 | G179: =D179+E179+F179 -> 0 | I179: 0 | J179: 0 | L179: =I179+J179+K179 -> 0 | M179: 0 | Q179: 1920 | R179: Computer Equip.-Hardware(Post Mar. 19/07) | S179: 0 | W179: 0 | Y179: 0 | AC179: 0 | AD179: 0
B180: 1925 | C180: Computer Equip.-Software | D180: 2390993.07 | E180: 142246.2 | G180: 2533239.27 | I180: -1897576.47 | J180: -134675.41 | L180: -2032251.88 | M180: 500987.39 | Q180: 1925 | R180: Computer Equip.-Software (Application) | S180: 2305670.08 | T180: 128310.9 | W180: 2433980.98 | Y180: -1890786.86 | Z180: -122974.39 | AC180: -2013761.25 | AD180: 420219.73
D181: 0 | G181: 0 | I181: 0 | J181: 0 | L181: =I181+J181+K181 -> 0 | M181: 0 | Q181: 1925 | R181: Computer Equip.-Software (Server) | S181: 85323 | T181: 13935.3 | W181: 99258.3 | Y181: -21518.6 | Z181: -30763.55 | AC181: -52282.15 | AD181: 46976.15
B182: 1930 | C182: Transportation Equipment | D182: 0 | G182: 0 | I182: 0 | J182: 0 | L182: =I182+J182+K182 -> 0 | M182: 0 | Q182: 1930 | R182: Transportation Equipment | S182: 0 | W182: 0 | Y182: 0 | AC182: 0 | AD182: 0
B183: 1935 | C183: Stores Equipment | D183: 56186.63 | G183: 56186.63 | I183: -56186.63 | J183: 0 | L183: -56186.63 | M183: 0 | Q183: 1935 | R183: Stores Equipment | S183: 56186.63 | W183: 56186.63 | Y183: -56186.63 | Z183: 0 | AC183: -56186.63 | AD183: 0
B184: 1940 | C184: Tools, Shop & Garage Equipment | D184: 4284 | E184: 0 | G184: 4284 | I184: -4283.6 | J184: 0 | L184: -4283.6 | M184: 0.4 | Q184: 1940 | R184: Tools, Shop & Garage Equipment | S184: 4284 | T184: 0 | W184: 4284 | Y184: -4283.6 | Z184: 0 | AC184: -4283.6 | AD184: 0.4
B185: 1945 | C185: Measurement & Testing Equipment | D185: 20903.01 | E185: 0 | G185: 20903.01 | I185: -20901.3 | J185: 0 | L185: -20901.3 | M185: 1.71 | Q185: 1945 | R185: Measurement & Testing Equipment | S185: 20903.01 | T185: 0 | W185: 20903.01 | Y185: -20903.11 | Z185: 0 | AC185: -20903.11 | AD185: -0.1
B186: 1950 | C186: Power Operated Equipment | D186: 0 | G186: 0 | I186: 0 | J186: 0 | L186: 0 | M186: 0 | Q186: 1950 | R186: Power Operated Equipment | S186: 0 | W186: 0 | Y186: 0 | AC186: 0 | AD186: 0
B187: 1955 | C187: Communications Equipment | D187: 78103.41 | G187: 78103.41 | I187: -78103.41 | J187: 0 | L187: -78103.41 | M187: 0 | Q187: 1955 | R187: Communications Equipment | S187: 78103.41 | W187: =S187+U187+T187+V187 -> 78103.41 | Y187: -78103.41 | Z187: 0 | AC187: -78103.41 | AD187: 0
B188: 1955 | C188: Communication Equipment (Smart Meters) | D188: 0 | G188: 0 | J188: 0 | L188: 0 | M188: 0 | Q188: 1955 | R188: Communication Equipment (Smart Meters) | S188: 0 | W188: =S188+U188+T188+V188 -> 0 | Y188: 0 | Z188: 0 | AC188: 0 | AD188: 0
B189: 1960 | C189: Miscellaneous Equipment | D189: 0 | G189: 0 | J189: 0 | L189: 0 | M189: 0 | Q189: 1960 | R189: Miscellaneous Equipment | S189: 0 | W189: 0 | Y189: 0 | AC189: 0 | AD189: 0
B190: 1970 | C190: Load Management Controls Customer Premises | D190: 0 | G190: 0 | J190: 0 | L190: 0 | M190: 0 | Q190: 1970 | R190: Load Management Controls Customer Premises | S190: 0 | W190: 0 | Y190: 0 | AC190: 0 | AD190: 0
B191: 1975 | C191: Load Management Controls Utility Premises | D191: 0 | G191: 0 | J191: 0 | L191: 0 | M191: 0 | Q191: 1975 | R191: Load Management Controls Utility Premises | S191: 0 | W191: 0 | Y191: 0 | AC191: 0 | AD191: 0
B192: 1980 | C192: System Supervisor Equipment | D192: 2491520.11 | E192: 45751.12 | G192: 2537271.23 | I192: =L123 -> -1883315.42 | J192: -92748.80133 | L192: -1976064.221 | M192: 561207.0087 | Q192: 1980 | R192: System Supervisor Equipment | S192: 2491520.75 | T192: 45751.12 | W192: 2537271.87 | Y192: -1905597.67 | Z192: -116060.77 | AC192: -2021658.44 | AD192: 515613.43
B193: 1985 | C193: Miscellaneous Fixed Assets | D193: 0 | G193: 0 | J193: 0 | L193: 0 | M193: 0 | Q193: 1985 | R193: Miscellaneous Fixed Assets | S193: 0 | W193: 0 | Y193: 0 | AC193: 0 | AD193: 0
B194: 1990 | C194: Other Tangible Property | D194: 0 | G194: 0 | J194: 0 | L194: 0 | M194: 0 | Q194: 1990 | R194: Other Tangible Property | S194: 0 | W194: 0 | Y194: 0 | AC194: 0 | AD194: 0
B195: 1995 | C195: Contributions & Grants | D195: -34337791.43 | E195: -10178882.35 | G195: -44516673.78 | I195: =L126 -> 10421916.41 | J195: 1169171.758 | L195: 11591088.17 | M195: -32925585.61 | Q195: 1995 | R195: Contributions & Grants | S195: -34337791.43 | T195: -10178882.35 | W195: -44516673.78 | Y195: 9178306.21 | Z195: 944656.67 | AC195: 10122962.88 | AD195: -34393710.9
B196: 2440 | C196: Deferred Revenues | D196: 0 | G196: 0 | J196: 0 | L196: 0 | M196: 0 | Q196: 2440 | R196: Deferred Revenues | S196: 0 | W196: 0 | Y196: 0 | AC196: 0 | AD196: 0
B197: 2075 | C197: Non Rate-Regulated Utility Assets | D197: 385706.19 | E197: 0 | G197: 385706.19 | I197: =L128 -> -9643 | J197: 0 | L197: -9643 | M197: 376063.19 | Q197: 2075 | R197: Non Rate-Regulated Utility Assets | S197: 385706.19 | T197: 0 | W197: 385706.19 | Y197: -9643 | Z197: -19285.29 | AC197: -28928.29 | AD197: =W197+AC197-1 -> 356776.9
C198: Sub-Total | D198: =SUM(D151:D197) -> 155104032.8 | E198: =SUM(E151:E197) -> 6466420.9 | F198: =SUM(F151:F197) -> -374652 | G198: =SUM(G151:G197) -> 161195801.7 | I198: =SUM(I151:I197) -> -86326022.66 | J198: =SUM(J151:J197) -> -5581921.993 | K198: =SUM(K151:K197) -> 181251.57 | L198: =SUM(L151:L197) -> -91726693.08 | M198: =SUM(M151:M197) -> 69469108.6 | R198: Sub-Total | S198: =SUM(S151:S197) -> 153245851.3 | T198: =SUM(T151:T197) -> 5563640.4 | U198: =SUM(U151:U197) -> 0 | V198: =SUM(V151:V197) -> -374652 | W198: =SUM(W151:W197) -> 158434839.7 | Y198: =SUM(Y151:Y197) -> -82450275.32 | Z198: -3497616.22 | AA198: 0 | AB198: 181251.57 | AC198: -85766639.97 | AD198: 72668198.75
C199: Less Socialized Renewable Energy Generation Investments (input as negative) | D199: =G130 -> 0 | G199: =D199+E199+F199 -> 0 | I199: =L130 -> 0 | L199: =I199+J199+K199 -> 0 | M199: =G199+L199 -> 0 | R199: Less Socialized Renewable Energy Generation Investments (input as negative)
C200: Less Other Non Rate-Regulated Utility Assets (input as negative) | D200: =G131 -> -385705.56 | G200: =D200+E200+F200 -> -385705.56 | I200: =L131 -> 9643 | L200: =I200+J200+K200 -> 9643 | M200: =G200+L200 -> -376062.56 | R200: Less Other Non Rate-Regulated Utility Assets (input as negative) | S200: =W131 -> -385705.75 | W200: =S200+U200+T200+V200 -> -385705.75 | Y200: =AC131 -> 9643 | Z200: =-Z197 -> 19285.29 | AC200: =Y200+Z200+AA200+AB200 -> 28928.29 | AD200: =W200+AC200 -> -356777.46
C201: Total PP&E | D201: =SUM(D198:D200) -> 154718327.2 | E201: =SUM(E198:E200) -> 6466420.9 | F201: =SUM(F198:F200) -> -374652 | G201: =SUM(G198:G200) -> 160810096.1 | I201: =SUM(I198:I200) -> -86316379.66 | J201: =SUM(J198:J200) -> -5581921.993 | K201: =SUM(K198:K200) -> 181251.57 | L201: =SUM(L198:L200) -> -91717050.08 | M201: =SUM(M198:M200) -> 69093046.04 | R201: Total PP&E | S201: =SUM(S198:S200) -> 152860145.6 | T201: =SUM(T198:T200) -> 5563640.4 | U201: =SUM(U198:U200) -> 0 | V201: =SUM(V198:V200) -> -374652 | W201: =SUM(W198:W200) -> 158049134 | Y201: =SUM(Y198:Y200) -> -82440632.32 | Z201: =SUM(Z198:Z200) -> -3478330.93 | AB201: =SUM(AB198:AB200) -> 181251.57 | AC201: =SUM(AC198:AC200) -> -85737711.68 | AD201: =SUM(AD198:AD200) -> 72311421.29
G203: Less: Fully Allocated Depreciation | W203: Less: Fully Allocated Depreciation
G204: Transportation | W204: Transportation
G205: Stores Equipment | W205: Stores Equipment
G206: Net Depreciation | J206: =J201-J204-J205 -> -5581921.993 | W206: Net Depreciation | Z206: =Z201-Z204-Z205 -> -3478330.93
B214: TABLE 2-7 (Appendix 2-BA) | Q214: TABLE 2-8 (Appendix 2-BA)
B215: Fixed Asset Continuity Schedule | Q215: Fixed Asset Continuity Schedule
E217: Accounting Standard | F217: CGAAP | T217: Accounting Standard | V217: MIFRS
E218: Year | F218: 2016 | T218: Year | V218: 2016
D220: Cost | J220: Accumulated Depreciation | S220: Cost | Z220: Accumulated Depreciation
B221: OEB | C221: Description | D221: Opening Balance | E221: Additions | F221: Disposals | G221: Closing Balance | I221: Opening Balance | J221: Additions | K221: Disposals | L221: Closing Balance | M221: Net Book Value | Q221: OEB | R221: Description | S221: Opening Balance | T221: Additions | U221: Reclassification | V221: Disposals | W221: Closing Balance | Y221: Opening Balance | Z221: Additions | AA221: Reclassification | AB221: Disposals | AC221: Closing Balance | AD221: Net Book Value
B222: 1611 | C222: Computer Software (Formally known as Account 1925) | D222: =+G151 -> 0 | E222: 2609448 | G222: =D222+E222+F222 -> 2609448 | J222: -2174071.36 | L222: =I222+J222+K222 -> -2174071.36 | M222: =G222+L222 -> 435376.64 | Q222: 1611 | R222: Computer Software (Formally known as Account 1925) | S222: =W151 -> 0 | T222: 76208 | U222: 2533240 | W222: =S222+U222+T222+V222 -> 2609448 | Y222: =AC151 -> 0 | Z222: -155630.98 | AA222: -2066044 | AC222: =Y222+Z222+AA222+AB222 -> -2221674.98 | AD222: =W222+AC222 -> 387773.02
B223: 1612 | C223: Land Rights (Formally known as Account 1906) | D223: =+G152 -> 0 | G223: =D223+E223+F223 -> 0 | L223: =I223+J223+K223 -> 0 | M223: =G223+L223 -> 0 | Q223: 1612 | R223: Land Rights (Formally known as Account 1906) | S223: 0 | W223: 0 | Y223: 0 | AC223: 0 | AD223: 0
B224: 1805 | C224: Land | D224: =G153 -> 245786 | G224: =D224+E224+F224 -> 245786 | L224: 0 | M224: 245786 | Q224: 1805 | R224: Land | S224: 245786 | W224: 245786 | Y224: 0 | AC224: 0 | AD224: 245786
B225: 1806 | C225: Land Rights | D225: 10971 | E225: -10971 | G225: =D225+E225+F225 -> 0 | L225: 0 | M225: 0 | Q225: 1806 | R225: Land rights | S225: 10971 | U225: -10971 | W225: 0 | Y225: 0 | AC225: 0 | AD225: 0
B226: 1808 | C226: Buildings | D226: 1117301.59 | G226: 1117301.59 | I226: =L155 -> -1117301.58 | L226: -1117301.58 | M226: 0.01000000001 | Q226: 1808 | R226: Buildings | S226: 1117301.59 | W226: 1117301.59 | Y226: -1115817.58 | AC226: -1115817.58 | AD226: 1484.01
B227: 1810 | C227: Leasehold Improvements | D227: 0 | G227: 0 | L227: 0 | M227: 0 | Q227: 1810 | R227: Leasehold Improvements | S227: 0 | W227: 0 | Y227: 0 | AC227: 0 | AD227: 0
B228: 1815 | C228: Transformer Station Equipment >50 kV | D228: 0 | G228: 0 | L228: 0 | M228: 0 | Q228: 1815 | R228: Transformer Station Equipment >50 kV | S228: 0 | W228: 0 | Y228: 0 | AC228: 0 | AD228: 0
B229: 1820 | C229: Distribution Station Equipment <50 kV | D229: 17934458.51 | E229: 944572.4 | F229: 0 | G229: 18879030.91 | I229: =L158 -> -8363458.23 | J229: -573198.05 | L229: -8936656.28 | M229: 9942374.63 | Q229: 1820 | R229: Distribution Station Equipment <50 kV | S229: 17906467.99 | T229: 913059 | W229: 18819526.99 | Y229: -7619701.19 | Z229: -319632 | AC229: -7939333.19 | AD229: 10880193.8
B230: 1825 | C230: Storage Battery Equipment | D230: 0 | G230: 0 | J230: 0 | L230: 0 | M230: 0 | Q230: 1825 | R230: Storage Battery Equipment | S230: 0 | W230: 0 | Y230: 0 | AC230: 0 | AD230: 0
B231: 1830 | C231: Poles, Towers & Fixtures | D231: 36289865.78 | E231: 3828849.44 | G231: 40118715.22 | I231: =L160 -> -14513560.64 | J231: -1273161.12 | L231: -15786721.76 | M231: 24331993.46 | Q231: 1830 | R231: Poles, Towers & Fixtures | S231: 35255175 | T231: 3559782 | W231: 38814957 | Y231: -12725732.73 | Z231: -609157 | AC231: -13334889.73 | AD231: 25480067.27
... 171 more rows

Sheet App.2-C_Depreciation Exp
C2: TABLE 3-1 (Appendix 2-C)
C3: Depreciation and Amortization Expense
F5: Accounting Standard | H5: RCGAAP
F6: Year | H6: 2013
E8: Book Values | L8: Service Lives | P8: Depreciation Expense
C9: Account | D9: Description | E9: Opening Net Book Value of Existing Assets as at Date of Policy Change (Jan. 1,2013) 1 | F9: Less Fully Depreciated 7 | G9: Net Amount of Existing Assets Before Policy Change to be Depreciated | H9: Opening Gross Book Value of Assets Acquired After Policy Change 2 | I9: Less Fully Depreciated 8 | J9: Net Amount of Assets Acquired After Policy Change to be Depreciated | K9: Current Year Additions | L9: Average Remaining Life of Assets Existing Before Policy Change 3 | M9: Depreciation Rate Assets Acquired After Policy Change | N9: Life of Assets Acquired After Policy Change 4 | O9: Depreciation Rate on New Additions | P9: Depreciation Expense on Assets Existing Before Policy Change | Q9: Depreciation Expense on Assets Acquired After Policy Change | R9: Depreciation Expense on Current Year Additions 5 | S9: Total Current Year Depreciation Expense | T9: Depreciation Expense per Appendix 2-BA Fixed Assets, Column J | U9: Variance 6
E10: a | F10: b | G10: c = a-b | H10: d | I10: e | J10: f = d- e | K10: g | L10: h | M10: i = 1/h | N10: j | O10: k = 1/j | P10: l = c/h | Q10: m = f/j | R10: n = g*0.5/j | S10: o = l+m+n | T10: p | U10: q = p-o
C11: 1611 | D11: Computer Software (Formally known as Account 1925) | G11: =+E11-F11 -> 0 | J11: 0 | K11: =+'App.2-BA_Fixed Asset Cont'!$T10 -> 0 | M11: 0 | O11: 0 | P11: 0 | Q11: 0 | R11: 0 | S11: =+P11+Q11+R11 -> 0 | T11: =-'App.2-BA_Fixed Asset Cont'!$Z10 -> 0 | U11: =+T11-S11 -> 0
C12: 1612 | D12: Land Rights (Formally known as Account 1906) | E12: =+'App.2-BA_Fixed Asset Cont'!$S$11+'App.2-BA_Fixed Asset Cont'!$Y$11 -> 0 | G12: =+E12-F12 -> 0 | J12: 0 | K12: =+'App.2-BA_Fixed Asset Cont'!$T11 -> 0 | M12: 0 | O12: 0 | P12: 0 | Q12: 0 | R12: 0 | S12: =+P12+Q12+R12 -> 0 | T12: =-'App.2-BA_Fixed Asset Cont'!$Z11 -> 0 | U12: =+T12-S12 -> 0
C13: 1805 | D13: Land | E13: =+'App.2-BA_Fixed Asset Cont'!$S$12+'App.2-BA_Fixed Asset Cont'!$Y$12+'App.2-BA_Fixed Asset Cont'!$S$13+'App.2-BA_Fixed Asset Cont'!$Y$13 -> 256757 | G13: 256757 | J13: 0 | K13: =+'App.2-BA_Fixed Asset Cont'!$T12+'App.2-BA_Fixed Asset Cont'!$T13 -> 0 | M13: 0 | O13: 0 | P13: 0 | Q13: 0 | R13: 0 | S13: 0 | T13: =-'App.2-BA_Fixed Asset Cont'!$Z12-'App.2-BA_Fixed Asset Cont'!$Z13 -> 0 | U13: 0
C14: 1808 | D14: Buildings | E14: =+'App.2-BA_Fixed Asset Cont'!$S$14+'App.2-BA_Fixed Asset Cont'!$Y$14 -> 4291.01 | G14: 4291.01 | J14: 0 | K14: =+'App.2-BA_Fixed Asset Cont'!$T14 -> 0 | L14: 1.528681867 | M14: =1/L14 -> 0.654158345 | O14: 0 | P14: =+G14/L14 -> 2807 | Q14: 0 | R14: 0 | S14: 2807 | T14: =-'App.2-BA_Fixed Asset Cont'!$Z14 -> 2807 | U14: 0
C15: 1810 | D15: Leasehold Improvements | E15: =+'App.2-BA_Fixed Asset Cont'!$S$15+'App.2-BA_Fixed Asset Cont'!$Y$15 -> 0 | G15: 0 | J15: 0 | K15: =+'App.2-BA_Fixed Asset Cont'!$T15 -> 0 | M15: 0 | O15: 0 | P15: 0 | Q15: 0 | R15: 0 | S15: 0 | T15: =-'App.2-BA_Fixed Asset Cont'!$Z15 -> 0 | U15: 0
C16: 1815 | D16: Transformer Station Equipment >50 kV | E16: =+'App.2-BA_Fixed Asset Cont'!$S$16+'App.2-BA_Fixed Asset Cont'!$Y$16 -> 0 | G16: 0 | J16: 0 | K16: =+'App.2-BA_Fixed Asset Cont'!$T16 -> 0 | M16: 0 | O16: 0 | P16: 0 | Q16: 0 | R16: 0 | S16: 0 | T16: =-'App.2-BA_Fixed Asset Cont'!$Z16 -> 0 | U16: 0
C17: 1820 | D17: Distribution Station Equipment <50 kV | E17: =+'App.2-BA_Fixed Asset Cont'!$S$17+'App.2-BA_Fixed Asset Cont'!$Y$17 -> 10908603.4 | G17: 10908603.4 | J17: 0 | K17: =+'App.2-BA_Fixed Asset Cont'!$T17 -> 173204.46 | L17: 35.93883443 | M17: =1/L17 -> 0.02782505376 | N17: 45 | O17: =1/N17 -> 0.02222222222 | P17: =+G17/L17 -> 303532.476 | Q17: =+J17/N17 -> 0 | R17: =+K17*0.5/N17 -> 1924.494 | S17: =+P17+Q17+R17 -> 305456.97 | T17: =-'App.2-BA_Fixed Asset Cont'!$Z17 -> 305456.97 | U17: 0
C18: 1825 | D18: Storage Battery Equipment | E18: =+'App.2-BA_Fixed Asset Cont'!$S$18+'App.2-BA_Fixed Asset Cont'!$Y$18 -> 0 | G18: 0 | J18: 0 | K18: =+'App.2-BA_Fixed Asset Cont'!$T18 -> 0 | M18: 0 | O18: 0 | P18: 0 | Q18: 0 | R18: 0 | S18: 0 | T18: =-'[9]App.2-BA_Fixed Asset Cont'!$Z7 -> 0 | U18: 0
C19: 1830 | D19: Poles, Towers & Fixtures | E19: =+'App.2-BA_Fixed Asset Cont'!$S$19+'App.2-BA_Fixed Asset Cont'!$Y$19 -> 15420367.42 | G19: 15420367.42 | J19: 0 | K19: =+'App.2-BA_Fixed Asset Cont'!$T19 -> 1478899.02 | L19: 38.87715046 | M19: =1/L19 -> 0.0257220498 | N19: 45 | O19: =1/N19 -> 0.02222222222 | P19: =+G19/L19 -> 396643.4587 | Q19: 0 | R19: =+K19*0.5/N19 -> 16432.21133 | S19: 413075.67 | T19: =-'App.2-BA_Fixed Asset Cont'!$Z19 -> 413075.67 | U19: 0
C20: 1835 | D20: Overhead Conductors & Devices | E20: =+'App.2-BA_Fixed Asset Cont'!$S$20+'App.2-BA_Fixed Asset Cont'!$Y$20-$E$21 -> 5632977.12 | G20: =+E20-F20 -> 5632977.12 | J20: 0 | K20: =+'App.2-BA_Fixed Asset Cont'!$T20-K21 -> 613789.48 | L20: 99.0291544 | M20: =1/L20 -> 0.01009803634 | N20: 60 | O20: =1/N20 -> 0.01666666667 | P20: 56882.00767 | Q20: 0 | R20: 5114.912333 | S20: 61996.92 | T20: =-'App.2-BA_Fixed Asset Cont'!$Z20-T21 -> 61996.92 | U20: 0
C21: 1835 | D21: Overhead Conductors & Devices-switches | E21: =1584199+1474615 -> 3058814 | G21: 3058814 | J21: 0 | K21: =53496+124659 -> 178155 | L21: 22.93801066 | M21: =1/L21 -> 0.04359575966 | N21: 30 | O21: =1/N21 -> 0.03333333333 | P21: 133351.32 | Q21: 0 | R21: 2969.25 | S21: 136320.57 | T21: =2077.65+43122.97+39675.95+51444 -> 136320.57 | U21: 0
C22: 1840 | D22: Underground Conduit | E22: =+'App.2-BA_Fixed Asset Cont'!$S$22+'App.2-BA_Fixed Asset Cont'!$Y$22-6943713 -> 5299734.67 | G22: 5299734.67 | J22: 0 | K22: =+'App.2-BA_Fixed Asset Cont'!$T22 -> 1216606.52 | L22: 52.14308019 | M22: =1/L22 -> 0.01917800016 | N22: 60 | O22: 0.01666666667 | P22: 101638.3123 | Q22: 0 | R22: 10138.38767 | S22: 111776.7 | T22: =-'App.2-BA_Fixed Asset Cont'!$Z22 -> 111776.7 | U22: 0
C23: 1845 | D23: Underground Conductors & Devices-DB | E23: 1638368 | G23: 1638368 | J23: 0 | K23: 0 | L23: 15.23893147 | M23: 0.06562139886 | N23: 35 | O23: =1/N23 -> 0.02857142857 | P23: 107512 | Q23: 0 | R23: 0 | S23: 107512 | T23: =158956-51444 -> 107512 | U23: 0
C24: 1845 | D24: Underground Conductors & Devices-IB | E24: =+'App.2-BA_Fixed Asset Cont'!$S$23+'App.2-BA_Fixed Asset Cont'!$Y$23-$E$23+7330262 -> 13580179.12 | G24: 13580179.12 | J24: 0 | K24: =+'App.2-BA_Fixed Asset Cont'!$T23 -> 886693 | L24: 28.26421857 | M24: 0.03538042269 | N24: 40 | O24: =1/N24 -> 0.025 | P24: 480472.4775 | Q24: 0 | R24: 11083.6625 | S24: 491556.14 | T24: =-'App.2-BA_Fixed Asset Cont'!$Z23-T23 -> 491556.14 | U24: 0
C25: 1850 | D25: Line Transformers | E25: =+'App.2-BA_Fixed Asset Cont'!$S$24+'App.2-BA_Fixed Asset Cont'!$Y$24-$E$26-4517582 -> 11709973.45 | G25: =+E25-F25 -> 11709973.45 | J25: 0 | K25: =+'App.2-BA_Fixed Asset Cont'!$T24 -> 933749.09 | L25: 28.30539348 | M25: 0.03532895597 | N25: 40 | O25: =1/N25/100% -> 0.025 | P25: =+ROUND(G25/L25,2) -> 413701.14 | Q25: 0 | R25: =+ROUND(K25*0.5/N25,2) -> 11671.86 | S25: 425373 | T25: =-'App.2-BA_Fixed Asset Cont'!$Z24 -> 425373 | U25: 0
D26: Line Transformers | J26: 0 | M26: 0 | O26: 0 | Q26: 0 | R26: 0 | S26: 0 | U26: 0
C27: 1855 | D27: Services (Overhead ) | E27: =+'App.2-BA_Fixed Asset Cont'!$S$25+'App.2-BA_Fixed Asset Cont'!$Y$25+'App.2-BA_Fixed Asset Cont'!$S$26+'App.2-BA_Fixed Asset Cont'!$Y$26+4131033-$E$28 -> 1812478.35 | G27: 1812478.35 | J27: 0 | K27: =+'App.2-BA_Fixed Asset Cont'!$T25 -> 107528.64 | L27: 22.64812557 | M27: 0.04415376437 | N27: 40 | O27: =1/N27 -> 0.025 | P27: 80027.742 | Q27: 0 | R27: 1344.108 | S27: 81371.85 | T27: =-'App.2-BA_Fixed Asset Cont'!$Z25 -> 81371.85 | U27: 0
C28: 1855 | D28: Services (Underground) | E28: =4139248+4131033 -> 8270281 | G28: 8270281 | J28: 0 | K28: =+'App.2-BA_Fixed Asset Cont'!$T26 -> 12827.95 | L28: 23.3080657 | M28: 0.0429036031 | N28: 35 | O28: 0.02857142857 | P28: 354824.8536 | Q28: 0 | R28: 183.2564286 | S28: 355008.11 | T28: =-'App.2-BA_Fixed Asset Cont'!$Z26 -> 355008.11 | U28: 0
C29: 1860 | D29: Meters Includes Stranded Meter Disposal (2008-2013) | E29: 1276931 | G29: 1276931 | J29: 0 | K29: 46325.91 | L29: 11 | M29: 0.09090909091 | N29: 30 | O29: 0.03333333333 | P29: 116084.6364 | Q29: 0 | R29: 772.0985 | S29: 116856.7349 | T29: =-'App.2-BA_Fixed Asset Cont'!$Z27-T30-T31 -> 1386028.22 | U29: 1269171.485
C30: 1860 | D30: Meters (Smart Meters) | E30: =4240379+134207.7 -> 4374586.7 | G30: 4374586.7 | J30: 0 | K30: 56703.95 | L30: 12.50261975 | M30: 0.07998323714 | N30: 12 | O30: 0.08333333333 | P30: 349893.6054 | Q30: 0 | R30: 2362.664583 | S30: 352256.27 | T30: 352256.27 | U30: 0
C31: 1860 | D31: Meters (Intangibles) | E31: =126013+317761+10224+26400 -> 480398 | G31: 480398 | J31: 0 | K31: 570 | L31: 2.363598542 | M31: 0.4230836931 | N31: 5 | O31: 0.2 | P31: 203248.56 | Q31: 0 | R31: 57 | S31: 203305.56 | T31: 203305.56 | U31: 0
C32: 1905 | D32: Land | E32: =+'App.2-BA_Fixed Asset Cont'!$S$29+'App.2-BA_Fixed Asset Cont'!$Y$29 -> 182214.88 | G32: 182214.88 | J32: 0 | K32: =+'App.2-BA_Fixed Asset Cont'!$T29 -> 0 | M32: 0 | Q32: 0 | R32: 0 | S32: 0 | U32: 0
C33: 1908 | D33: Buildings & Fixtures | E33: =+'App.2-BA_Fixed Asset Cont'!$S$30+'App.2-BA_Fixed Asset Cont'!$Y$30 -> 3356863.94 | G33: 3356863.94 | J33: 0 | K33: =+'App.2-BA_Fixed Asset Cont'!$T30 -> 0 | L33: =+G33/(T33-R33-Q33) -> 563.059319 | M33: 0 | N33: 50 | O33: 0.02 | P33: 5961.83 | Q33: 0 | R33: 0 | S33: 5961.83 | T33: =-'App.2-BA_Fixed Asset Cont'!$Z30 -> 5961.83 | U33: 0
C34: 1908 | D34: Buildings & Fixtures, HVAC | E34: =+'App.2-BA_Fixed Asset Cont'!$S$31+'App.2-BA_Fixed Asset Cont'!$Y$31 -> 0 | G34: 0 | J34: 0 | K34: =+'App.2-BA_Fixed Asset Cont'!$T31 -> 8700 | M34: 0 | N34: 20 | O34: 0.05 | P34: 0 | Q34: 0 | R34: =+ROUND(K34*0.5/N34,-2) -> 200 | S34: 200 | T34: =-'App.2-BA_Fixed Asset Cont'!$Z31 -> 200 | U34: 0
C35: 1908 | D35: Buildings & Fixtures-Roof, Paving/Parking | E35: =+'App.2-BA_Fixed Asset Cont'!$S$32+'App.2-BA_Fixed Asset Cont'!$Y$32++'App.2-BA_Fixed Asset Cont'!$S$33+'App.2-BA_Fixed Asset Cont'!$Y$33 -> 188439 | G35: 188439 | J35: 0 | K35: =+'App.2-BA_Fixed Asset Cont'!$T32++'App.2-BA_Fixed Asset Cont'!$T33 -> 291010 | L35: 48.99609984 | M35: 0 | N35: 50 | O35: 0.02 | P35: 3846 | Q35: 0 | R35: =+ROUND(K35*0.5/N35,-2) -> 2900 | S35: 6746 | T35: =-'App.2-BA_Fixed Asset Cont'!$Z33+-'App.2-BA_Fixed Asset Cont'!$Z32 -> 6746 | U35: 0
C36: 1910 | D36: Leasehold Improvements | E36: =+'App.2-BA_Fixed Asset Cont'!$S$34+'App.2-BA_Fixed Asset Cont'!$Y$34 -> 0 | G36: 0 | J36: 0 | K36: =+'App.2-BA_Fixed Asset Cont'!$T34 -> 0 | M36: 0 | O36: 0 | P36: 0 | Q36: 0 | R36: 0 | S36: 0 | T36: =-'App.2-BA_Fixed Asset Cont'!$Z34 -> 0 | U36: 0
C37: 1915 | D37: Office Furniture & Equipment (10 years) | E37: =+'App.2-BA_Fixed Asset Cont'!$S$35+'App.2-BA_Fixed Asset Cont'!$Y$35 -> 165400.83 | G37: 165400.83 | J37: 0 | K37: =+'App.2-BA_Fixed Asset Cont'!$T35 -> 8833 | L37: 5.610314719 | M37: =1/L37 -> 0.1782431201 | N37: 10 | O37: 0.1 | P37: =+G37/L37 -> 29481.56 | Q37: 0 | R37: 441.65 | S37: 29923.21 | T37: =-'App.2-BA_Fixed Asset Cont'!$Z35 -> 29923.21 | U37: 0
C38: 1915 | D38: Office Furniture & Equipment (5 years) | E38: =+'App.2-BA_Fixed Asset Cont'!$S$36+'App.2-BA_Fixed Asset Cont'!$Y$36 -> 0 | G38: 0 | J38: 0 | K38: =+'App.2-BA_Fixed Asset Cont'!$T36 -> 0 | M38: 0 | O38: 0 | P38: 0 | Q38: 0 | R38: 0 | S38: 0 | T38: =-'App.2-BA_Fixed Asset Cont'!$Z36 -> 0 | U38: 0
C39: 1920 | D39: Computer Equipment - Hardware | E39: =+'App.2-BA_Fixed Asset Cont'!$S$37+'App.2-BA_Fixed Asset Cont'!$Y$37 -> 238725.79 | G39: 238725.79 | J39: 0 | K39: =+'App.2-BA_Fixed Asset Cont'!$T37 -> 55920.38 | L39: 2.549373246 | M39: 0.3922532731 | N39: 4 | O39: 0.25 | P39: =+G39/L39 -> 93640.9725 | Q39: 0 | R39: 6990.0475 | S39: 100631.02 | T39: =-'App.2-BA_Fixed Asset Cont'!$Z37 -> 100631.02 | U39: 0
C40: 1920 | D40: Computer Equip.-Hardware(Post Mar. 22/04) | E40: =+'App.2-BA_Fixed Asset Cont'!$S$38+'App.2-BA_Fixed Asset Cont'!$Y$38 -> 0 | G40: 0 | J40: 0 | K40: =+'App.2-BA_Fixed Asset Cont'!$T38 -> 0 | M40: 0 | O40: 0 | P40: 0 | Q40: 0 | R40: 0 | S40: 0 | T40: =-'App.2-BA_Fixed Asset Cont'!$Z38 -> 0 | U40: 0
C41: 1920 | D41: Computer Equip.-Hardware(Post Mar. 19/07) | E41: =+'App.2-BA_Fixed Asset Cont'!$S$39+'App.2-BA_Fixed Asset Cont'!$Y$39 -> 0 | G41: 0 | J41: 0 | K41: =+'App.2-BA_Fixed Asset Cont'!$T39 -> 0 | M41: 0 | O41: 0 | P41: 0 | Q41: 0 | R41: 0 | S41: 0 | T41: =-'App.2-BA_Fixed Asset Cont'!$Z39 -> 0 | U41: 0
C42: 1925 | D42: Computer Equip.-Software (Application) | E42: =+'App.2-BA_Fixed Asset Cont'!$S$40+'App.2-BA_Fixed Asset Cont'!$Y$40 -> 367684.16 | G42: 367684.16 | J42: 0 | K42: =130098-K43 -> 130098 | L42: 3.104396477 | M42: =1/L42 -> 0.3221238032 | N42: 5 | O42: 0.2 | P42: =+G42/L42 -> 118439.82 | Q42: 0 | R42: =+K42*0.5/N42 -> 13009.8 | S42: 131449.62 | T42: =-'App.2-BA_Fixed Asset Cont'!$Z40 -> 131449.62 | U42: 0
C43: 1925 | D43: Computer Equip.-Software (Server) | E43: =+'App.2-BA_Fixed Asset Cont'!$S$41+'App.2-BA_Fixed Asset Cont'!$Y$41 -> 0 | G43: 0 | J43: 0 | L43: 0 | M43: 0 | O43: 0 | P43: 0 | Q43: 0 | R43: 0 | S43: =+P43+Q43+R43 -> 0 | T43: 0 | U43: 0
C44: 1930 | D44: Transportation Equipment | E44: =+'App.2-BA_Fixed Asset Cont'!$S$42+'App.2-BA_Fixed Asset Cont'!$Y$42 -> 0 | G44: 0 | J44: 0 | K44: =+'App.2-BA_Fixed Asset Cont'!$T42 -> 0 | M44: 0 | O44: 0 | P44: 0 | Q44: 0 | R44: 0 | S44: 0 | T44: =-'App.2-BA_Fixed Asset Cont'!$Z42 -> 0 | U44: 0
C45: 1935 | D45: Stores Equipment | E45: =+'App.2-BA_Fixed Asset Cont'!$S$43+'App.2-BA_Fixed Asset Cont'!$Y$43 -> 0 | G45: 0 | J45: 0 | K45: =+'App.2-BA_Fixed Asset Cont'!$T43 -> 0 | M45: 0 | O45: 0 | P45: 0 | Q45: 0 | R45: 0 | S45: 0 | T45: =-'App.2-BA_Fixed Asset Cont'!$Z43 -> 0 | U45: 0
C46: 1940 | D46: Tools, Shop & Garage Equipment | E46: =+'App.2-BA_Fixed Asset Cont'!$S$44+'App.2-BA_Fixed Asset Cont'!$Y$44 -> 856.8 | G46: 856.8 | J46: 0 | K46: =+'App.2-BA_Fixed Asset Cont'!$T44 -> 0 | L46: 2 | M46: =1/L46 -> 0.5 | N46: 5 | O46: =1/N46 -> 0.2 | P46: =+G46/L46 -> 428.4 | Q46: 0 | R46: 0 | S46: 428.4 | T46: =-'App.2-BA_Fixed Asset Cont'!$Z44 -> 428.4 | U46: 0
C47: 1945 | D47: Measurement & Testing Equipment | E47: =+'App.2-BA_Fixed Asset Cont'!$S$45+'App.2-BA_Fixed Asset Cont'!$Y$45 -> 4181.81 | G47: 4181.81 | J47: 0 | K47: =+'App.2-BA_Fixed Asset Cont'!$T45 -> 0 | L47: 2 | M47: 0.5 | N47: 5 | O47: 0.2 | P47: =+ROUND(G47/L47,2) -> 2090.91 | Q47: 0 | R47: 0 | S47: 2090.91 | T47: =-'App.2-BA_Fixed Asset Cont'!$Z45 -> 2090.91 | U47: 0
C48: 1950 | D48: Power Operated Equipment | E48: =+'App.2-BA_Fixed Asset Cont'!$S$46+'App.2-BA_Fixed Asset Cont'!$Y$46 -> 0 | G48: 0 | J48: 0 | K48: =+'App.2-BA_Fixed Asset Cont'!$T46 -> 0 | M48: 0 | O48: 0 | P48: 0 | Q48: 0 | R48: 0 | S48: 0 | T48: =-'App.2-BA_Fixed Asset Cont'!$Z46 -> 0 | U48: 0
C49: 1955 | D49: Communications Equipment | E49: =+'App.2-BA_Fixed Asset Cont'!$S$47+'App.2-BA_Fixed Asset Cont'!$Y$47 -> 0 | G49: 0 | J49: 0 | K49: =+'App.2-BA_Fixed Asset Cont'!$T47 -> 0 | M49: 0 | O49: 0 | P49: 0 | Q49: 0 | R49: 0 | S49: 0 | T49: =-'App.2-BA_Fixed Asset Cont'!$Z47 -> 0 | U49: 0
C50: 1955 | D50: Communication Equipment (Smart Meters) | E50: =+'App.2-BA_Fixed Asset Cont'!$S$48+'App.2-BA_Fixed Asset Cont'!$Y$48 -> 0 | G50: 0 | J50: 0 | K50: =+'App.2-BA_Fixed Asset Cont'!$T48 -> 0 | M50: 0 | O50: 0 | P50: 0 | Q50: 0 | R50: 0 | S50: 0 | T50: =-'App.2-BA_Fixed Asset Cont'!$Z48 -> 0 | U50: 0
C51: 1960 | D51: Miscellaneous Equipment | E51: =+'App.2-BA_Fixed Asset Cont'!$S$49+'App.2-BA_Fixed Asset Cont'!$Y$49 -> 0 | G51: 0 | J51: 0 | K51: =+'App.2-BA_Fixed Asset Cont'!$T49 -> 0 | M51: 0 | O51: 0 | P51: 0 | Q51: 0 | R51: 0 | S51: 0 | T51: =-'App.2-BA_Fixed Asset Cont'!$Z49 -> 0 | U51: 0
C52: 1970 | D52: Load Management Controls Customer Premises | E52: =+'App.2-BA_Fixed Asset Cont'!$S$50+'App.2-BA_Fixed Asset Cont'!$Y$50 -> 0 | G52: 0 | J52: 0 | K52: =+'App.2-BA_Fixed Asset Cont'!$T50 -> 0 | M52: 0 | O52: 0 | P52: 0 | Q52: 0 | R52: 0 | S52: 0 | T52: =-'App.2-BA_Fixed Asset Cont'!$Z50 -> 0 | U52: 0
C53: 1975 | D53: Load Management Controls Utility Premises | E53: =+'App.2-BA_Fixed Asset Cont'!$S$51+'App.2-BA_Fixed Asset Cont'!$Y$51 -> 0 | G53: 0 | J53: 0 | K53: =+'App.2-BA_Fixed Asset Cont'!$T51 -> 0 | M53: 0 | O53: 0 | P53: 0 | Q53: 0 | R53: 0 | S53: 0 | T53: =-'App.2-BA_Fixed Asset Cont'!$Z51 -> 0 | U53: 0
C54: 1980 | D54: System Supervisor Equipment | E54: =+'App.2-BA_Fixed Asset Cont'!$S$52+'App.2-BA_Fixed Asset Cont'!$Y$52 -> 627868.11 | G54: 627868.11 | J54: 0 | K54: =+'App.2-BA_Fixed Asset Cont'!$T52 -> 88446.41 | L54: =+G54/(T54-R54-Q54) -> 7.198405017 | M54: =1/L54 -> 0.1389196631 | N54: 15 | O54: =1/N54 -> 0.06666666667 | P54: =+G54/L54 -> 87223.22633 | Q54: 0 | R54: =+K54*0.5/N54 -> 2948.213667 | S54: 90171.44 | T54: =-'App.2-BA_Fixed Asset Cont'!$Z52 -> 90171.44 | U54: 0
C55: 1980 | D55: System Supervisor Equipment-Scada | E55: =+'App.2-BA_Fixed Asset Cont'!$S$53+'App.2-BA_Fixed Asset Cont'!$Y$53 -> 0 | G55: 0 | J55: 0 | K55: =+'App.2-BA_Fixed Asset Cont'!$T53 -> 0 | M55: 0 | O55: 0 | P55: 0 | Q55: 0 | R55: 0 | S55: 0 | T55: 0 | U55: 0
C56: 1985 | D56: Miscellaneous Fixed Assets | E56: 0 | G56: 0 | J56: 0 | K56: =+'App.2-BA_Fixed Asset Cont'!$T54 -> 0 | M56: 0 | O56: 0 | P56: 0 | Q56: 0 | R56: 0 | S56: 0 | T56: =-'App.2-BA_Fixed Asset Cont'!$Z54 -> 0 | U56: 0
C57: 1990 | D57: Other Tangible Property | E57: 0 | G57: 0 | J57: 0 | K57: 0 | M57: 0 | O57: 0 | P57: 0 | Q57: 0 | R57: 0 | S57: 0 | U57: 0
C58: 1995 | D58: Contributions & Grants | E58: =+'App.2-BA_Fixed Asset Cont'!$S$55+'App.2-BA_Fixed Asset Cont'!$Y$55 -> -21312029.43 | G58: -21312029.43 | J58: 0 | K58: =+'App.2-BA_Fixed Asset Cont'!$T55 -> -2239797 | L58: 36.1921739 | M58: =1/L58 -> 0.0276302828 | N58: 47.97 | O58: 0.4797 | P58: =+G58/L58 -> -588857.4001 | Q58: 0 | R58: =+K58*0.5/N58 -> -23345.80988 | S58: -612203.21 | T58: =-'App.2-BA_Fixed Asset Cont'!$Z55 -> -612203.21 | U58: 0
D59: Total | E59: =SUM(E11:E58) -> 67544946.13 | F59: 0 | G59: =SUM(G11:G58) -> 67544946.13 | H59: 0 | I59: 0 | J59: 0 | K59: =SUM(K11:K58) -> 4048263.81 | P59: =SUM(P11:P58) -> 2852874.908 | Q59: 0 | R59: 67197.80663 | S59: 2920072.715 | T59: 4189244.2 | U59: 1269171.485
C62: General: | D62: Applicants are to complete this appendix to show the reasonability of the depreciation expense that is included in rate base via. Accumulated depreciation and the revenue requirement.
D63: Applicants must provide a breakdown of depreciation and amortization expense in the above format for all relevant accounts. Balances presented in the table should exclude asset retirement obligations (AROs) and the related depreciation and accretion expense. These should be disclosed separately consistent with the Notes of historical Audited Financial Statements.
C66: Notes:
C67: 1 | D67: This is the net book value of assets that existed as at the date of the utility's change in depreciation policies (i.e. as at Jan. 1, 2012 or Jan. 1, 2013). These assets are to be depreciated at the average remaining service life. This amount will not change in years subsequent to the date of the utility's change in depreciation policies. This column is expected to be used until the assets that existed as at the date of the utility's change in depreciation policies are fully depreciated.
C68: 2 | D68: This is the opening gross book value of assets that have been acquired after the date of the utilities change in depreciation policies (i.e. additions starting in 2012/2013 for those who changed policies Jan. 1, 2012/2013). These assets are to be depreciated at the revised service life. The amount is expected to be equal to the gross book value of the prior year plus the prior year's additions.
C69: 3 | D69: A recalculation should be performed to determine the average remaining life of opening balance of assets (i.e. excluding current year's additions) under the change in policies under CGAAP. For example, Asset A had a useful life of 20 years under CGAAP without the change in policies. On January 1 of the year of policy changes, Asset A was 3 years depreciated. As a result, Asset A would have a remaining service life of 17 years (20 years less 3 years) as at January 1 of the year of policy changes. Due to making the change in policies under CGAAP, management re-assessed the asset useful lives and concluded that the revised useful life of Asset A is now 30 years. Therefore, the average remaining useful life of the opening balance of Asset A is determined to be 27 years (30 years less 3 years) under the revised CGAAP as at January 1 of the year of policy changes.
C70: 4 | D70: The useful life used should be consistent with the OEB's regulatory accounting policies as set out in the Accounting Procedures Handbook for Electricity Distributors, effective Jan. 1, 2012 and also with the Report of the Board, Transition to International Financial Reporting Standards, EB-2008-0408, and the Kinectrics Report.
C71: 5 | D71: Board policy of the "half-year" rule - the applicant must ensure that additions in the year attract a half-year depreciation expense in the first year. Deviations from this standard practice must be supported in the application.
C72: 6 | D72: The applicant must provide an explanation of material variances in evidence.
C73: 7 | D73: This should include assets in column a (excel column C) that become fully depreciated since the date of the policy change. The amount input in b (excel column D) should equal the net book value of the asset as at the date of depreciation policy change
C74: 8 | D74: This should include assets in column d (excel column f) that have become fully depreciated. The amount input in e (excel column G) should equal the gross book value of the asset
C90: TABLE 3-2 (Appendix 2-C)
C91: Depreciation and Amortization Expense
F93: Accounting Standard | H93: RCGAAP
F94: Year | H94: 2014
E96: Book Values | L96: Service Lives | P96: Depreciation Expense
C97: Account | D97: Description | E97: Opening Net Book Value of Existing Assets as at Date of Policy Change (Jan. 1,2013) 1 | F97: Less Fully Depreciated 7 | G97: Net Amount of Existing Assets Before Policy Change to be Depreciated | H97: Opening Gross Book Value of Assets Acquired After Policy Change 2 | I97: Less Fully Depreciated 8 | J97: Net Amount of Assets Acquired After Policy Change to be Depreciated | K97: Current Year Additions | L97: Average Remaining Life of Assets Existing Before Policy Change 3 | M97: Depreciation Rate Assets Acquired After Policy Change | N97: Life of Assets Acquired After Policy Change 4 | O97: Depreciation Rate on New Additions | P97: Depreciation Expense on Assets Existing Before Policy Change | Q97: Depreciation Expense on Assets Acquired After Policy Change | R97: Depreciation Expense on Current Year Additions 5 | S97: Total Current Year Depreciation Expense | T97: Depreciation Expense per Appendix 2-BA Fixed Assets, Column J | U97: Variance 6
E98: a | F98: b | G98: c = a-b | H98: d | I98: e | J98: f = d- e | K98: g | L98: h | M98: i = 1/h | N98: j | O98: k = 1/j | P98: l = c/h | Q98: m = f/j | R98: n = g*0.5/j | S98: o = l+m+n | T98: p | U98: q = p-o
C99: 1611 | D99: Computer Software (Formally known as Account 1925) | G99: =+E99-F99 -> 0 | H99: =+K11 -> 0 | J99: =+H99-I99 -> 0 | K99: =+'App.2-BA_Fixed Asset Cont'!$T82 -> 0 | M99: 0 | O99: 0 | P99: 0 | Q99: 0 | R99: 0 | S99: =+P99+Q99+R99 -> 0 | T99: =-'App.2-BA_Fixed Asset Cont'!$Z82 -> 0 | U99: =+T99-S99 -> 0
C100: 1612 | D100: Land Rights (Formally known as Account 1906) | E100: =+'App.2-BA_Fixed Asset Cont'!$S$11+'App.2-BA_Fixed Asset Cont'!$Y$11 -> 0 | G100: =+E100-F100 -> 0 | H100: 0 | J100: =+H100-I100 -> 0 | K100: =+'App.2-BA_Fixed Asset Cont'!$T83 -> 0 | M100: 0 | O100: 0 | P100: 0 | Q100: 0 | R100: 0 | S100: =+P100+Q100+R100 -> 0 | T100: =-'App.2-BA_Fixed Asset Cont'!$Z83 -> 0 | U100: =+T100-S100 -> 0
C101: 1805 | D101: Land | E101: =+'App.2-BA_Fixed Asset Cont'!$S$12+'App.2-BA_Fixed Asset Cont'!$Y$12+'App.2-BA_Fixed Asset Cont'!$S$13+'App.2-BA_Fixed Asset Cont'!$Y$13 -> 256757 | G101: 256757 | H101: 0 | J101: 0 | K101: =+'App.2-BA_Fixed Asset Cont'!$T84+'App.2-BA_Fixed Asset Cont'!$T85 -> 0 | M101: 0 | O101: 0 | P101: 0 | Q101: 0 | R101: 0 | S101: 0 | T101: =-'App.2-BA_Fixed Asset Cont'!$Z84-'App.2-BA_Fixed Asset Cont'!$Z85 -> 0 | U101: 0
C102: 1808 | D102: Buildings | E102: =+'App.2-BA_Fixed Asset Cont'!$S$14+'App.2-BA_Fixed Asset Cont'!$Y$14 -> 4291.01 | G102: 4291.01 | H102: 0 | J102: 0 | K102: =+'App.2-BA_Fixed Asset Cont'!$T86 -> 0 | L102: 0 | M102: 0 | O102: 0 | P102: 0 | Q102: 0 | R102: 0 | S102: 0 | T102: =-'App.2-BA_Fixed Asset Cont'!$Z86 -> 0 | U102: 0
C103: 1810 | D103: Leasehold Improvements | E103: =+'App.2-BA_Fixed Asset Cont'!$S$15+'App.2-BA_Fixed Asset Cont'!$Y$15 -> 0 | G103: 0 | H103: 0 | J103: 0 | K103: =+'App.2-BA_Fixed Asset Cont'!$T87 -> 0 | M103: 0 | O103: 0 | P103: 0 | Q103: 0 | R103: 0 | S103: 0 | T103: =-'App.2-BA_Fixed Asset Cont'!$Z87 -> 0 | U103: 0
C104: 1815 | D104: Transformer Station Equipment >50 kV | E104: =+'App.2-BA_Fixed Asset Cont'!$S$16+'App.2-BA_Fixed Asset Cont'!$Y$16 -> 0 | G104: 0 | H104: 0 | J104: 0 | K104: =+'App.2-BA_Fixed Asset Cont'!$T88 -> 0 | M104: 0 | O104: 0 | P104: 0 | Q104: 0 | R104: 0 | S104: 0 | T104: =-'App.2-BA_Fixed Asset Cont'!$Z88 -> 0 | U104: 0
C105: 1820 | D105: Distribution Station Equipment <50 kV | E105: =+'App.2-BA_Fixed Asset Cont'!$S$17+'App.2-BA_Fixed Asset Cont'!$Y$17 -> 10908603.4 | G105: 10908603.4 | H105: 173204.46 | J105: 173204.46 | K105: =+'App.2-BA_Fixed Asset Cont'!$T89 -> 104934 | L105: =+G105/(T105-R105-Q105) -> 36.16514292 | M105: =1/L105 -> 0.02765093455 | N105: 45 | O105: =1/N105 -> 0.02222222222 | P105: =+G105/L105 -> 301633.0787 | Q105: =+J105/N105 -> 3848.988 | R105: =+K105*0.5/N105 -> 1165.933333 | S105: =+P105+Q105+R105 -> 306648 | T105: =-'App.2-BA_Fixed Asset Cont'!$Z89 -> 306648 | U105: 0
C106: 1825 | D106: Storage Battery Equipment | E106: =+'App.2-BA_Fixed Asset Cont'!$S$18+'App.2-BA_Fixed Asset Cont'!$Y$18 -> 0 | G106: 0 | H106: 0 | J106: 0 | K106: =+'App.2-BA_Fixed Asset Cont'!$T90 -> 0 | M106: 0 | O106: 0 | P106: 0 | Q106: 0 | R106: 0 | S106: =+P106+Q106+R106 -> 0 | T106: 0 | U106: 0
C107: 1830 | D107: Poles, Towers & Fixtures | E107: =+'App.2-BA_Fixed Asset Cont'!$S$19+'App.2-BA_Fixed Asset Cont'!$Y$19 -> 15420367.42 | G107: 15420367.42 | H107: 1478899.02 | J107: 1478899.02 | K107: =+'App.2-BA_Fixed Asset Cont'!$T91 -> 1865319 | L107: =+G107/(T107-R107-Q107) -> 38.90428513 | M107: =1/L107 -> 0.02570410937 | N107: 45 | O107: =1/N107 -> 0.02222222222 | P107: =+G107/L107 -> 396366.8107 | Q107: =+J107/N107 -> 32864.42267 | R107: =+K107*0.5/N107 -> 20725.76667 | S107: 449957 | T107: =-'App.2-BA_Fixed Asset Cont'!$Z91 -> 449957 | U107: 0
C108: 1835 | D108: Overhead Conductors & Devices | E108: =+'App.2-BA_Fixed Asset Cont'!$S$20+'App.2-BA_Fixed Asset Cont'!$Y$20-$E$21 -> 5632977.12 | G108: =+E108-F108 -> 5632977.12 | H108: 613789.48 | J108: 613789.48 | K108: =+'App.2-BA_Fixed Asset Cont'!$T92 -> 856712 | L108: 51.12526583 | M108: =1/L108 -> 0.0195598005 | N108: 60 | O108: =1/N108 -> 0.01666666667 | P108: 110179.9087 | Q108: 10229.82467 | R108: 7139.266667 | S108: 127549 | T108: =-'App.2-BA_Fixed Asset Cont'!$Z92 -> 127549 | U108: 0
C109: 1835 | D109: Overhead Conductors & Devices-switches | E109: =1584199+1474615 -> 3058814 | G109: =+E109-F109 -> 3058814 | H109: 178155 | J109: 178155 | K109: =+'App.2-BA_Fixed Asset Cont'!$T93 -> 199550 | L109: 20.70057795 | M109: =1/L109 -> 0.04830782998 | N109: 30 | O109: =1/N109 -> 0.03333333333 | P109: 147764.6667 | Q109: 5938.5 | R109: 3325.833333 | S109: 157029 | T109: =-'App.2-BA_Fixed Asset Cont'!$Z93 -> 157029 | U109: 0
C110: 1840 | D110: Underground Conduit | E110: =+'App.2-BA_Fixed Asset Cont'!$S$22+'App.2-BA_Fixed Asset Cont'!$Y$22-6943713 -> 5299734.67 | G110: 5299734.67 | H110: 1216606.52 | J110: 1216606.52 | K110: =+'App.2-BA_Fixed Asset Cont'!$T94 -> 725628 | L110: 20.3026712 | M110: =1/L110 -> 0.04925460253 | N110: 60 | O110: 0.01666666667 | P110: 261036.3247 | Q110: 20276.77533 | R110: 6046.9 | S110: 287360 | T110: =-'App.2-BA_Fixed Asset Cont'!$Z94 -> 287360 | U110: 0
C111: 1845 | D111: Underground Conductors & Devices-DB | E111: 1638368 | G111: 1638368 | H111: 0 | J111: 0 | K111: 0 | L111: 10.30699257 | M111: 0.09702151165 | N111: 35 | O111: =1/N111 -> 0.02857142857 | P111: 158956.94 | Q111: 0 | R111: 0 | S111: 158956.94 | T111: 158956.94 | U111: 0
C112: 1845 | D112: Underground Conductors & Devices-IB | E112: =+'App.2-BA_Fixed Asset Cont'!$S$23+'App.2-BA_Fixed Asset Cont'!$Y$23-$E$23+7330262 -> 13580179.12 | G112: 13580179.12 | H112: 886693 | J112: 886693 | K112: =+'App.2-BA_Fixed Asset Cont'!$T95 -> 1630102 | L112: 31.08762993 | M112: 0.03216713536 | N112: 40 | O112: =1/N112 -> 0.025 | P112: 436835.46 | Q112: 22167.325 | R112: 20376.275 | S112: 479379.06 | T112: =-'App.2-BA_Fixed Asset Cont'!$Z95-T111 -> 479379.06 | U112: 0
C113: 1850 | D113: Line Transformers | E113: =+'App.2-BA_Fixed Asset Cont'!$S$24+'App.2-BA_Fixed Asset Cont'!$Y$24-4517582 -> 11709973.45 | G113: =+E113-F113 -> 11709973.45 | H113: 933749.09 | J113: 933749.09 | K113: =+'App.2-BA_Fixed Asset Cont'!$T96 -> 1182092 | L113: 18.84898743 | M113: 0.05305324776 | N113: 40 | O113: =1/N113/100% -> 0.025 | P113: 621252.1227 | Q113: 23343.72725 | R113: 14776.15 | S113: 659372 | T113: =-'App.2-BA_Fixed Asset Cont'!$Z96 -> 659372 | U113: 0
D114: Line Transformers | G114: =+E114-F114 -> 0 | H114: 0 | J114: 0 | M114: 0 | O114: 0 | Q114: 0 | S114: 0 | U114: 0
C115: 1855 | D115: Services (Overhead ) | E115: =+'App.2-BA_Fixed Asset Cont'!$S$25+'App.2-BA_Fixed Asset Cont'!$Y$25+'App.2-BA_Fixed Asset Cont'!$S$26+'App.2-BA_Fixed Asset Cont'!$Y$26+4131033-$E$28 -> 1812478.35 | G115: =+E115-F115 -> 1812478.35 | H115: 107528.64 | J115: 107528.64 | K115: =+'App.2-BA_Fixed Asset Cont'!$T97 -> 84556 | L115: 27.18824239 | M115: =1/L115 -> 0.03678060486 | N115: 40 | O115: =1/N115 -> 0.025 | P115: 66664.05 | Q115: 0 | R115: 1056.95 | S115: 67721 | T115: =-'App.2-BA_Fixed Asset Cont'!$Z97 -> 67721 | U115: 0
C116: 1855 | D116: Services (Underground) | E116: =4139248+4131033 -> 8270281 | G116: 8270281 | H116: 12827.95 | J116: 12827.95 | K116: =+'App.2-BA_Fixed Asset Cont'!$T98 -> 422624 | L116: 20.795589 | M116: 0.04808712079 | N116: 35 | O116: 0.02857142857 | P116: 397694.0014 | Q116: =+J116/N116 -> 366.5128571 | R116: 6037.485714 | S116: 404098 | T116: =-'App.2-BA_Fixed Asset Cont'!$Z98 -> 404098 | U116: 0
C117: 1860 | D117: Meters | E117: 1276931 | G117: 1276931 | H117: 46325.91 | J117: 46325.91 | K117: =+'App.2-BA_Fixed Asset Cont'!$T99-K118-K119 -> 148550.14 | L117: 32.85967102 | M117: 0.03043244101 | N117: 30 | O117: 0.03333333333 | P117: 38860.12733 | Q117: 1544.197 | R117: 2475.835667 | S117: 42880.16 | T117: =-'App.2-BA_Fixed Asset Cont'!$Z99-T118-T119 -> 42880.16 | U117: 0
C118: 1860 | D118: Meters (Smart Meters) | E118: =4240379+134207.7 -> 4374586.7 | G118: 4374586.7 | H118: 56703.95 | J118: 56703.95 | K118: 108364 | L118: 9.226576505 | M118: 0.108382562 | N118: 12 | O118: 0.08333333333 | P118: 474128.9142 | Q118: 4725.329167 | R118: 4515.166667 | S118: 483369.41 | T118: 483369.41 | U118: 0
C119: 1860 | D119: Meters (Intangibles) | E119: =126013+317761+10224+26400 -> 480398 | G119: 480398 | H119: 570 | J119: 570 | K119: =10668.86 -> 10668.86 | L119: 2.557300702 | M119: 0.3910373149 | N119: 5 | O119: 0.2 | P119: 187853.544 | Q119: 114 | R119: 1066.886 | S119: 189034.43 | T119: 189034.43 | U119: 0
C120: 1905 | D120: Land | E120: =+'App.2-BA_Fixed Asset Cont'!$S$29+'App.2-BA_Fixed Asset Cont'!$Y$29 -> 182214.88 | G120: 182214.88 | H120: 0 | J120: 0 | K120: =+'App.2-BA_Fixed Asset Cont'!$T100 -> 0 | M120: 0 | Q120: 0 | R120: 0 | S120: 0 | U120: 0
C121: 1908 | D121: Buildings & Fixtures | E121: =+'App.2-BA_Fixed Asset Cont'!$S$30+'App.2-BA_Fixed Asset Cont'!$Y$30 -> 3356863.94 | G121: 3356863.94 | H121: 0 | J121: 0 | K121: =+'App.2-BA_Fixed Asset Cont'!$T101 -> 545229 | L121: 29.06760505 | M121: =1/L121 -> 0.03440255907 | N121: 50 | O121: =1/N121 -> 0.02 | P121: =+G121/L121 -> 115484.71 | Q121: =+J121/N121 -> 0 | R121: =+K121*0.5/N121 -> 5452.29 | S121: 120937 | T121: =-'App.2-BA_Fixed Asset Cont'!$Z101 -> 120937 | U121: 0
C122: 1908 | D122: Buildings & Fixtures, HVAC | E122: =+'App.2-BA_Fixed Asset Cont'!$S$31+'App.2-BA_Fixed Asset Cont'!$Y$31 -> 0 | G122: 0 | H122: 8700 | J122: 8700 | K122: =+'App.2-BA_Fixed Asset Cont'!$T102 -> 0 | L122: 0 | M122: 0 | N122: 10 | O122: 0.1 | P122: 0 | Q122: =+J122/N122 -> 870 | R122: 0 | S122: 870 | T122: =-'App.2-BA_Fixed Asset Cont'!$Z102 -> 870 | U122: 0
C123: 1908 | D123: Buildings & Fixtures-Roof, Paving/Parking | E123: =+'App.2-BA_Fixed Asset Cont'!$S$32+'App.2-BA_Fixed Asset Cont'!$Y$32++'App.2-BA_Fixed Asset Cont'!$S$33+'App.2-BA_Fixed Asset Cont'!$Y$33 -> 188439 | G123: 188439 | H123: 291010 | J123: 291010 | K123: =+'App.2-BA_Fixed Asset Cont'!$T103+'App.2-BA_Fixed Asset Cont'!$T104 -> 0 | L123: 17.98339457 | M123: 0 | N123: 20 | O123: 0.05 | P123: =+G123/L123 -> 10478.5 | Q123: =+J123/N123 -> 14550.5 | R123: =+K123*1/N123 -> 0 | S123: 25029 | T123: =-'App.2-BA_Fixed Asset Cont'!$Z104+-'App.2-BA_Fixed Asset Cont'!$Z103 -> 25029 | U123: 0
C124: 1910 | D124: Leasehold Improvements | E124: =+'App.2-BA_Fixed Asset Cont'!$S$34+'App.2-BA_Fixed Asset Cont'!$Y$34 -> 0 | G124: 0 | H124: 0 | J124: 0 | K124: =+'App.2-BA_Fixed Asset Cont'!$T105 -> 0 | M124: 0 | O124: 0 | P124: 0 | Q124: 0 | R124: 0 | S124: 0 | T124: =-'App.2-BA_Fixed Asset Cont'!$Z105 -> 0 | U124: 0
C125: 1915 | D125: Office Furniture & Equipment (10 years) | E125: =+'App.2-BA_Fixed Asset Cont'!$S$35+'App.2-BA_Fixed Asset Cont'!$Y$35 -> 165400.83 | G125: 165400.83 | H125: 8833 | J125: 8833 | K125: =+'App.2-BA_Fixed Asset Cont'!$T106 -> 46725 | L125: 6.125854569 | M125: =1/L125 -> 0.1632425303 | N125: 10 | O125: =1/N125 -> 0.1 | P125: =+G125/L125 -> 27000.45 | Q125: =+J125/N125 -> 883.3 | R125: =+K125*0.5/N125 -> 2336.25 | S125: 30220 | T125: =-'App.2-BA_Fixed Asset Cont'!$Z106 -> 30220 | U125: 0
C126: 1915 | D126: Office Furniture & Equipment (5 years) | E126: =+'App.2-BA_Fixed Asset Cont'!$S$36+'App.2-BA_Fixed Asset Cont'!$Y$36 -> 0 | G126: 0 | H126: 0 | J126: 0 | K126: =+'App.2-BA_Fixed Asset Cont'!$T107 -> 0 | M126: 0 | O126: 0 | P126: 0 | Q126: 0 | R126: 0 | S126: 0 | T126: =-'App.2-BA_Fixed Asset Cont'!$Z107 -> 0 | U126: 0
C127: 1920 | D127: Computer Equipment - Hardware | E127: =+'App.2-BA_Fixed Asset Cont'!$S$37+'App.2-BA_Fixed Asset Cont'!$Y$37 -> 238725.79 | G127: 238725.79 | H127: 55920.38 | J127: 55920.38 | K127: =+'App.2-BA_Fixed Asset Cont'!$T108 -> 172435 | L127: 3.61593265 | M127: =1/L127 -> 0.2765538235 | N127: 4 | O127: =1/N127 -> 0.25 | P127: =+G127/L127 -> 66020.53 | Q127: =+J127/N127 -> 13980.095 | R127: =+K127*0.5/N127 -> 21554.375 | S127: 101555 | T127: =-'App.2-BA_Fixed Asset Cont'!$Z108 -> 101555 | U127: 0
C128: 1920 | D128: Computer Equip.-Hardware(Post Mar. 22/04) | E128: =+'App.2-BA_Fixed Asset Cont'!$S$38+'App.2-BA_Fixed Asset Cont'!$Y$38 -> 0 | G128: 0 | H128: 0 | J128: 0 | K128: =+'App.2-BA_Fixed Asset Cont'!$T109 -> 0 | M128: 0 | O128: 0 | P128: 0 | Q128: 0 | R128: 0 | S128: 0 | T128: =-'App.2-BA_Fixed Asset Cont'!$Z109 -> 0 | U128: 0
C129: 1920 | D129: Computer Equip.-Hardware(Post Mar. 19/07) | E129: =+'App.2-BA_Fixed Asset Cont'!$S$39+'App.2-BA_Fixed Asset Cont'!$Y$39 -> 0 | G129: 0 | H129: 0 | J129: 0 | K129: =+'App.2-BA_Fixed Asset Cont'!$T110 -> 0 | M129: 0 | O129: 0 | P129: 0 | Q129: 0 | R129: 0 | S129: 0 | T129: =-'App.2-BA_Fixed Asset Cont'!$Z110 -> 0 | U129: 0
C130: 1925 | D130: Computer Equip.-Software (Application) | E130: =+'App.2-BA_Fixed Asset Cont'!$S$40+'App.2-BA_Fixed Asset Cont'!$Y$40 -> 367684.16 | G130: 367684.16 | H130: =+K42 -> 130098 | J130: 130098 | K130: =+'App.2-BA_Fixed Asset Cont'!$T111-43791 -> 175999.5 | L130: 4.386089354 | M130: =1/L130 -> 0.2279935312 | N130: 5 | O130: 0 | P130: =+G130/L130 -> 83829.61 | Q130: =+J130/N130 -> 26019.6 | R130: =+K130*0.5/N130 -> 17599.95 | S130: 127449.16 | T130: =-'App.2-BA_Fixed Asset Cont'!$Z111 -> 127449.16 | U130: 0
C131: 1925 | D131: Computer Equip.-Software (Application) | G131: =+E131-F131 -> 0 | H131: =+K43 -> 0 | J131: =+H131-I131 -> 0 | K131: =43791+41532 -> 85323 | M131: 0 | N131: 3 | O131: 0 | P131: 0 | Q131: =+J131/N131 -> 0 | R131: =+K131*0.5/N131+7298.5 -> 21519 | S131: =+P131+Q131+R131 -> 21519 | T131: 21519 | U131: 0
C132: 1930 | D132: Transportation Equipment | E132: =+'App.2-BA_Fixed Asset Cont'!$S$42+'App.2-BA_Fixed Asset Cont'!$Y$42 -> 0 | G132: 0 | H132: =+K44 -> 0 | J132: 0 | K132: =+'App.2-BA_Fixed Asset Cont'!$T113 -> 0 | M132: 0 | O132: 0 | P132: 0 | Q132: 0 | R132: 0 | S132: 0 | T132: =-'App.2-BA_Fixed Asset Cont'!$Z113 -> 0 | U132: 0
C133: 1935 | D133: Stores Equipment | E133: =+'App.2-BA_Fixed Asset Cont'!$S$43+'App.2-BA_Fixed Asset Cont'!$Y$43 -> 0 | G133: 0 | H133: 0 | J133: 0 | K133: =+'App.2-BA_Fixed Asset Cont'!$T114 -> 0 | M133: 0 | O133: 0 | P133: 0 | Q133: 0 | R133: 0 | S133: 0 | T133: =-'App.2-BA_Fixed Asset Cont'!$Z114 -> 0 | U133: 0
C134: 1940 | D134: Tools, Shop & Garage Equipment | E134: =+'App.2-BA_Fixed Asset Cont'!$S$44+'App.2-BA_Fixed Asset Cont'!$Y$44 -> 856.8 | G134: 856.8 | H134: 0 | J134: 0 | K134: =+'App.2-BA_Fixed Asset Cont'!$T115 -> 0 | L134: 2.001869159 | M134: =1/L134 -> 0.4995331466 | N134: 5 | O134: 0 | P134: =+G134/L134 -> 428 | Q134: =+J134/N134 -> 0 | R134: 0 | S134: 428 | T134: =-'App.2-BA_Fixed Asset Cont'!$Z115 -> 428 | U134: 0
C135: 1945 | D135: Measurement & Testing Equipment | E135: =+'App.2-BA_Fixed Asset Cont'!$S$45+'App.2-BA_Fixed Asset Cont'!$Y$45 -> 4181.81 | G135: 4181.81 | H135: 0 | J135: 0 | K135: =+'App.2-BA_Fixed Asset Cont'!$T116 -> 0 | L135: 1.999909134 | M135: 0.5000227174 | N135: 5 | O135: 0 | P135: 2091 | Q135: 0 | R135: 0 | S135: 2091 | T135: =-'App.2-BA_Fixed Asset Cont'!$Z116 -> 2091 | U135: 0
C136: 1950 | D136: Power Operated Equipment | E136: =+'App.2-BA_Fixed Asset Cont'!$S$46+'App.2-BA_Fixed Asset Cont'!$Y$46 -> 0 | G136: 0 | H136: 0 | J136: 0 | K136: =+'App.2-BA_Fixed Asset Cont'!$T117 -> 0 | M136: 0 | O136: 0 | P136: 0 | Q136: 0 | R136: 0 | S136: 0 | T136: =-'App.2-BA_Fixed Asset Cont'!$Z117 -> 0 | U136: 0
C137: 1955 | D137: Communications Equipment | E137: =+'App.2-BA_Fixed Asset Cont'!$S$47+'App.2-BA_Fixed Asset Cont'!$Y$47 -> 0 | G137: 0 | H137: 0 | J137: 0 | K137: =+'App.2-BA_Fixed Asset Cont'!$T118 -> 0 | M137: 0 | O137: 0 | P137: 0 | Q137: 0 | R137: 0 | S137: 0 | T137: =-'App.2-BA_Fixed Asset Cont'!$Z118 -> 0 | U137: 0
C138: 1955 | D138: Communication Equipment (Smart Meters) | E138: =+'App.2-BA_Fixed Asset Cont'!$S$48+'App.2-BA_Fixed Asset Cont'!$Y$48 -> 0 | G138: 0 | H138: 0 | J138: 0 | K138: =+'App.2-BA_Fixed Asset Cont'!$T119 -> 0 | M138: 0 | O138: 0 | P138: 0 | Q138: 0 | R138: 0 | S138: 0 | T138: =-'App.2-BA_Fixed Asset Cont'!$Z119 -> 0 | U138: 0
C139: 1960 | D139: Miscellaneous Equipment | E139: =+'App.2-BA_Fixed Asset Cont'!$S$49+'App.2-BA_Fixed Asset Cont'!$Y$49 -> 0 | G139: 0 | H139: 0 | J139: 0 | K139: =+'App.2-BA_Fixed Asset Cont'!$T120 -> 0 | M139: 0 | O139: 0 | P139: 0 | Q139: 0 | R139: 0 | S139: 0 | T139: =-'App.2-BA_Fixed Asset Cont'!$Z120 -> 0 | U139: 0
C140: 1970 | D140: Load Management Controls Customer Premises | E140: =+'App.2-BA_Fixed Asset Cont'!$S$50+'App.2-BA_Fixed Asset Cont'!$Y$50 -> 0 | G140: 0 | H140: 0 | J140: 0 | K140: =+'App.2-BA_Fixed Asset Cont'!$T121 -> 0 | M140: 0 | O140: 0 | P140: 0 | Q140: 0 | R140: 0 | S140: 0 | T140: =-'App.2-BA_Fixed Asset Cont'!$Z121 -> 0 | U140: 0
C141: 1975 | D141: Load Management Controls Utility Premises | E141: =+'App.2-BA_Fixed Asset Cont'!$S$51+'App.2-BA_Fixed Asset Cont'!$Y$51 -> 0 | G141: 0 | H141: 0 | J141: 0 | K141: =+'App.2-BA_Fixed Asset Cont'!$T122 -> 0 | M141: 0 | O141: 0 | P141: 0 | Q141: 0 | R141: 0 | S141: 0 | T141: =-'App.2-BA_Fixed Asset Cont'!$Z122 -> 0 | U141: 0
C142: 1980 | D142: System Supervisor Equipment | E142: =+'App.2-BA_Fixed Asset Cont'!$S$52+'App.2-BA_Fixed Asset Cont'!$Y$52 -> 627868.11 | G142: 627868.11 | H142: 88446.41 | J142: 88446.41 | K142: =+'App.2-BA_Fixed Asset Cont'!$T123 -> 65322 | L142: 6.441775739 | M142: =1/L142 -> 0.1552366988 | N142: 15 | O142: =1/N142 -> 0.06666666667 | P142: =+G142/L142 -> 97468.17267 | Q142: =+J142/N142 -> 5896.427333 | R142: =+K142*0.5/N142 -> 2177.4 | S142: 105542 | T142: =-'App.2-BA_Fixed Asset Cont'!$Z123 -> 105542 | U142: 0
C143: 1980 | D143: System Supervisor Equipment-Scada | E143: =+'App.2-BA_Fixed Asset Cont'!$S$53+'App.2-BA_Fixed Asset Cont'!$Y$53 -> 0 | G143: 0 | H143: 0 | J143: 0 | K143: =+'App.2-BA_Fixed Asset Cont'!$T124 -> 0 | M143: 0 | O143: 0 | P143: 0 | Q143: 0 | R143: 0 | S143: =+P143+Q143+R143 -> 0 | T143: =-'App.2-BA_Fixed Asset Cont'!$Z124 -> 0 | U143: 0
C144: 1985 | D144: Miscellaneous Fixed Assets | E144: 0 | G144: 0 | H144: 0 | J144: 0 | K144: =+'App.2-BA_Fixed Asset Cont'!$T125 -> 0 | M144: 0 | O144: 0 | P144: 0 | Q144: 0 | R144: 0 | S144: 0 | T144: 0 | U144: 0
C145: 1990 | D145: Other Tangible Property | E145: 0 | G145: 0 | H145: 0 | J145: 0 | M145: 0 | O145: 0 | P145: 0 | Q145: 0 | R145: 0 | S145: 0 | U145: 0
C146: 1995 | D146: Contributions & Grants | E146: =+'App.2-BA_Fixed Asset Cont'!$S$55+'App.2-BA_Fixed Asset Cont'!$Y$55 -> -21312029.43 | G146: -21312029.43 | H146: -2239797 | J146: -2239797 | K146: =+'App.2-BA_Fixed Asset Cont'!$T126 -> -2897207 | L146: 32.93229075 | M146: =1/L146 -> 0.03036533375 | N146: 47.97 | O146: 0.4797 | P146: =+G146/L146 -> -647146.8866 | Q146: 0 | R146: =+K146*0.5/N146 -> -30198.1134 | S146: -677345 | T146: =-'App.2-BA_Fixed Asset Cont'!$Z126 -> -677345 | U146: =+T146-S146 -> 0
D147: Total | E147: =SUM(E99:E146) -> 67544946.13 | F147: 0 | G147: =SUM(G99:G146) -> 67544946.13 | H147: =SUM(H99:H146) -> 4048263.81 | I147: 0 | J147: =SUM(J99:J146) -> 4048263.81 | K147: =SUM(K99:K146) -> 5532926.5 | P147: =SUM(P99:P146) -> 3354880.035 | Q147: 187619.5243 | R147: 129149.6006 | S147: 3671649.16 | T147: 3671649.16 | U147: 0
C150: General: | D150: Applicants are to complete this appendix to show the reasonability of the depreciation expense that is included in rate base via. Accumulated depreciation and the revenue requirement.
D151: Applicants must provide a breakdown of depreciation and amortization expense in the above format for all relevant accounts. Balances presented in the table should exclude asset retirement obligations (AROs) and the related depreciation and accretion expense. These should be disclosed separately consistent with the Notes of historical Audited Financial Statements.
C154: Notes:
C155: 1 | D155: This is the net book value of assets that existed as at the date of the utility's change in depreciation policies (i.e. as at Jan. 1, 2012 or Jan. 1, 2013). These assets are to be depreciated at the average remaining service life. This amount will not change in years subsequent to the date of the utility's change in depreciation policies. This column is expected to be used until the assets that existed as at the date of the utility's change in depreciation policies are fully depreciated.
C156: 2 | D156: This is the opening gross book value of assets that have been acquired after the date of the utilities change in depreciation policies (i.e. additions starting in 2012/2013 for those who changed policies Jan. 1, 2012/2013). These assets are to be depreciated at the revised service life. The amount is expected to be equal to the gross book value of the prior year plus the prior year's additions.
C157: 3 | D157: A recalculation should be performed to determine the average remaining life of opening balance of assets (i.e. excluding current year's additions) under the change in policies under CGAAP. For example, Asset A had a useful life of 20 years under CGAAP without the change in policies. On January 1 of the year of policy changes, Asset A was 3 years depreciated. As a result, Asset A would have a remaining service life of 17 years (20 years less 3 years) as at January 1 of the year of policy changes. Due to making the change in policies under CGAAP, management re-assessed the asset useful lives and concluded that the revised useful life of Asset A is now 30 years. Therefore, the average remaining useful life of the opening balance of Asset A is determined to be 27 years (30 years less 3 years) under the revised CGAAP as at January 1 of the year of policy changes.
C158: 4 | D158: The useful life used should be consistent with the OEB's regulatory accounting policies as set out in the Accounting Procedures Handbook for Electricity Distributors, effective Jan. 1, 2012 and also with the Report of the Board, Transition to International Financial Reporting Standards, EB-2008-0408, and the Kinectrics Report.
C159: 5 | D159: Board policy of the "half-year" rule - the applicant must ensure that additions in the year attract a half-year depreciation expense in the first year. Deviations from this standard practice must be supported in the application.
C160: 6 | D160: The applicant must provide an explanation of material variances in evidence.
C161: 7 | D161: This should include assets in column a (excel column C) that become fully depreciated since the date of the policy change. The amount input in b (excel column D) should equal the net book value of the asset as at the date of depreciation policy change
C162: 8 | D162: This should include assets in column d (excel column f) that have become fully depreciated. The amount input in e (excel column G) should equal the gross book value of the asset
C177: TABLE 3-3 (Appendix 2-C)
C178: Depreciation and Amortization Expense
F180: Accounting Standard | H180: MIFRS
F181: Year | H181: 2015
E183: Book Values | L183: Service Lives | P183: Depreciation Expense
C184: Account | D184: Description | E184: Opening Net Book Value of Existing Assets as at Date of Policy Change (Jan. 1,2013) 1 | F184: Less Fully Depreciated 7 | G184: Net Amount of Existing Assets Before Policy Change to be Depreciated | H184: Opening Gross Book Value of Assets Acquired After Policy Change 2 | I184: Less Fully Depreciated 8 | J184: Net Amount of Assets Acquired After Policy Change to be Depreciated | K184: Current Year Additions | L184: Average Remaining Life of Assets Existing Before Policy Change 3 | M184: Depreciation Rate Assets Acquired After Policy Change | N184: Life of Assets Acquired After Policy Change 4 | O184: Depreciation Rate on New Additions | P184: Depreciation Expense on Assets Existing Before Policy Change | Q184: Depreciation Expense on Assets Acquired After Policy Change | R184: Depreciation Expense on Current Year Additions 5 | S184: Total Current Year Depreciation Expense | T184: Depreciation Expense per Appendix 2-BA Fixed Assets, Column J | U184: Variance 6
E185: a | F185: b | G185: c = a-b | H185: d | I185: e | J185: f = d- e | K185: g | L185: h | M185: i = 1/h | N185: j | O185: k = 1/j | P185: l = c/h | Q185: m = f/j | R185: n = g*0.5/j | S185: o = l+m+n | T185: p | U185: q = p-o
C186: 1611 | D186: Computer Software (Formally known as Account 1925) | G186: =+E186-F186 -> 0 | H186: =+J99+K99 -> 0 | J186: =+H186-I186 -> 0 | K186: =+'App.2-BA_Fixed Asset Cont'!$T151 -> 0 | M186: 0 | O186: 0 | P186: 0 | Q186: 0 | R186: 0 | S186: =+P186+Q186+R186 -> 0 | T186: =-'App.2-BA_Fixed Asset Cont'!$Z151 -> 0 | U186: =+T186-S186 -> 0
C187: 1612 | D187: Land Rights (Formally known as Account 1906) | E187: =+'App.2-BA_Fixed Asset Cont'!$S$11+'App.2-BA_Fixed Asset Cont'!$Y$11 -> 0 | G187: =+E187-F187 -> 0 | H187: 0 | J187: =+H187-I187 -> 0 | K187: =+'App.2-BA_Fixed Asset Cont'!$T152 -> 0 | M187: 0 | O187: 0 | P187: 0 | Q187: 0 | R187: 0 | S187: =+P187+Q187+R187 -> 0 | T187: =-'App.2-BA_Fixed Asset Cont'!$Z152 -> 0 | U187: =+T187-S187 -> 0
C188: 1805 | D188: Land | E188: =+'App.2-BA_Fixed Asset Cont'!$S$12+'App.2-BA_Fixed Asset Cont'!$Y$12+'App.2-BA_Fixed Asset Cont'!$S$13+'App.2-BA_Fixed Asset Cont'!$Y$13 -> 256757 | G188: 256757 | H188: 0 | J188: 0 | K188: =+'App.2-BA_Fixed Asset Cont'!$T153+'App.2-BA_Fixed Asset Cont'!$T154 -> 0 | M188: 0 | O188: 0 | P188: 0 | Q188: 0 | R188: 0 | S188: 0 | T188: =-'App.2-BA_Fixed Asset Cont'!$Z153-'App.2-BA_Fixed Asset Cont'!$Z154 -> 0 | U188: 0
C189: 1808 | D189: Buildings | E189: =+'App.2-BA_Fixed Asset Cont'!$S$14+'App.2-BA_Fixed Asset Cont'!$Y$14 -> 4291.01 | F189: 4291.01 | G189: 0 | H189: 0 | J189: 0 | K189: =+'App.2-BA_Fixed Asset Cont'!$T155 -> 0 | L189: 0 | M189: 0 | O189: 0 | P189: 0 | Q189: 0 | R189: 0 | S189: 0 | T189: =-'App.2-BA_Fixed Asset Cont'!$Z155 -> 0 | U189: 0
C190: 1810 | D190: Leasehold Improvements | E190: =+'App.2-BA_Fixed Asset Cont'!$S$15+'App.2-BA_Fixed Asset Cont'!$Y$15 -> 0 | G190: 0 | H190: 0 | J190: 0 | K190: =+'App.2-BA_Fixed Asset Cont'!$T156 -> 0 | M190: 0 | O190: 0 | P190: 0 | Q190: 0 | R190: 0 | S190: 0 | T190: =-'App.2-BA_Fixed Asset Cont'!$Z156 -> 0 | U190: 0
C191: 1815 | D191: Transformer Station Equipment >50 kV | E191: =+'App.2-BA_Fixed Asset Cont'!$S$16+'App.2-BA_Fixed Asset Cont'!$Y$16 -> 0 | G191: 0 | H191: 0 | J191: 0 | K191: =+'App.2-BA_Fixed Asset Cont'!$T157 -> 0 | M191: 0 | O191: 0 | P191: 0 | Q191: 0 | R191: 0 | S191: 0 | T191: =-'App.2-BA_Fixed Asset Cont'!$Z157 -> 0 | U191: 0
C192: 1820 | D192: Distribution Station Equipment <50 kV | E192: =+'App.2-BA_Fixed Asset Cont'!$S$17+'App.2-BA_Fixed Asset Cont'!$Y$17 -> 10908603.4 | G192: 10908603.4 | H192: 278138.46 | J192: 278138.46 | K192: =+'App.2-BA_Fixed Asset Cont'!$T158 -> 75350 | L192: =+G192/(T192-R192-Q192) -> 36.16527068 | M192: =1/L192 -> 0.02765083687 | N192: 45 | O192: =1/N192 -> 0.02222222222 | P192: =+G192/L192 -> 301632.0131 | Q192: =+J192/N192 -> 6180.854667 | R192: =+K192*0.5/N192 -> 837.2222222 | S192: =+P192+Q192+R192 -> 308650.09 | T192: =-'App.2-BA_Fixed Asset Cont'!$Z158 -> 308650.09 | U192: 0
C193: 1825 | D193: Storage Battery Equipment | E193: =+'App.2-BA_Fixed Asset Cont'!$S$18+'App.2-BA_Fixed Asset Cont'!$Y$18 -> 0 | G193: 0 | H193: 0 | J193: 0 | K193: =+'App.2-BA_Fixed Asset Cont'!$T159 -> 0 | M193: 0 | O193: 0 | P193: 0 | Q193: 0 | R193: 0 | S193: =+P193+Q193+R193 -> 0 | T193: 0 | U193: 0
C194: 1830 | D194: Poles, Towers & Fixtures | E194: =+'App.2-BA_Fixed Asset Cont'!$S$19+'App.2-BA_Fixed Asset Cont'!$Y$19 -> 15420367.42 | G194: 15420367.42 | H194: 3344218.02 | J194: 3344218.02 | K194: =+'App.2-BA_Fixed Asset Cont'!$T160 -> 5142006.51 | L194: 40.29702403 | M194: =1/L194 -> 0.02481572831 | N194: 45 | O194: =1/N194 -> 0.02222222222 | P194: =+G194/L194 -> 382667.6483 | Q194: =+J194/N194 -> 74315.956 | R194: =+K194*0.5/N194 -> 57133.40567 | S194: 514117.01 | T194: =-'App.2-BA_Fixed Asset Cont'!$Z160 -> 514117.01 | U194: 0
C195: 1835 | D195: Overhead Conductors & Devices | E195: =+'App.2-BA_Fixed Asset Cont'!$S$20+'App.2-BA_Fixed Asset Cont'!$Y$20-$E$21 -> 5632977.12 | G195: =+E195-F195 -> 5632977.12 | H195: 1470501.48 | J195: 1470501.48 | K195: =+'App.2-BA_Fixed Asset Cont'!$T161-K196 -> 1637018.39 | L195: 51.5793152 | M195: =1/L195 -> 0.01938761684 | N195: 60 | O195: =1/N195 -> 0.01666666667 | P195: 109210.0021 | Q195: =+J195/N195 -> 24508.358 | R195: 13641.81992 | S195: 147360.18 | T195: =-'App.2-BA_Fixed Asset Cont'!$Z161-T196 -> 147360.18 | U195: 0
C196: 1835 | D196: Overhead Conductors & Devices-switches | E196: =1584199+1474615 -> 3058814 | G196: =+E196-F196 -> 3058814 | H196: 377705 | J196: 377705 | K196: =72798.3+92238.21 -> 165036.51 | L196: 20.64182852 | M196: =1/L196 -> 0.04844532058 | N196: 30 | O196: =1/N196 -> 0.03333333333 | P196: 148185.2248 | Q196: 12590.16667 | R196: 2750.6085 | S196: 163526 | T196: =87895+75631 -> 163526 | U196: 0
C197: 1840 | D197: Underground Conduit | E197: =+'App.2-BA_Fixed Asset Cont'!$S$22+'App.2-BA_Fixed Asset Cont'!$Y$22-6943713 -> 5299734.67 | G197: 5299734.67 | H197: 1942234.52 | J197: 1942234.52 | K197: =+'App.2-BA_Fixed Asset Cont'!$T163 -> 4229316.14 | L197: 20.47574808 | M197: =1/L197 -> 0.04883826448 | N197: 60 | O197: 0.01666666667 | P197: 258829.8435 | Q197: 32370.57533 | R197: 35244.30117 | S197: 326444.72 | T197: =-'App.2-BA_Fixed Asset Cont'!$Z163 -> 326444.72 | U197: 0
C198: 1845 | D198: Underground Conductors & Devices-DB | E198: 1638368 | G198: 1638368 | H198: 0 | J198: 0 | K198: 0 | L198: 16.15958852 | M198: 0.06188276382 | N198: 35 | O198: =1/N198 -> 0.02857142857 | P198: 101386.74 | Q198: 0 | R198: 0 | S198: 101386.74 | T198: 101386.74 | U198: 0
C199: 1845 | D199: Underground Conductors & Devices-IB | E199: =+'App.2-BA_Fixed Asset Cont'!$S$23+'App.2-BA_Fixed Asset Cont'!$Y$23-$E$23+7330262 -> 13580179.12 | G199: 13580179.12 | H199: 2516795 | J199: 2516795 | K199: =+'App.2-BA_Fixed Asset Cont'!$T164 -> 1693574.25 | L199: 31.01087665 | M199: 0.03224675043 | N199: 40 | O199: =1/N199 -> 0.025 | P199: 437916.6469 | Q199: =+J199/N199 -> 62919.875 | R199: 21169.67812 | S199: 522006.2 | T199: =-'App.2-BA_Fixed Asset Cont'!$Z164-T198 -> 522006.2 | U199: 0
C200: 1850 | D200: Line Transformers | E200: =+'App.2-BA_Fixed Asset Cont'!$S$24+'App.2-BA_Fixed Asset Cont'!$Y$24-$E$26-4517582 -> 11709973.45 | G200: =+E200-F200 -> 11709973.45 | H200: =+J113+K113+H201 -> 2115841.09 | J200: 2115841.09 | K200: =+'App.2-BA_Fixed Asset Cont'!$T165 -> 1431231.5 | L200: 18.88863514 | M200: 0.05294188767 | N200: 40 | O200: =1/N200/100% -> 0.025 | P200: 619948.099 | Q200: 52896.02725 | R200: 17890.39375 | S200: 690734.52 | T200: =-'App.2-BA_Fixed Asset Cont'!$Z165-T201 -> 690734.52 | U200: 0
D201: Line Transformers | G201: =+E201-F201 -> 0 | J201: 0 | M201: 0 | O201: 0 | S201: 0 | U201: 0
C202: 1855 | D202: Services (Overhead ) | E202: =+'App.2-BA_Fixed Asset Cont'!$S$25+'App.2-BA_Fixed Asset Cont'!$Y$25+'App.2-BA_Fixed Asset Cont'!$S$26+'App.2-BA_Fixed Asset Cont'!$Y$26+4131033-$E$28 -> 1812478.35 | G202: =+E202-F202 -> 1812478.35 | H202: =+J115+K115 -> 192084.64 | J202: 192084.64 | K202: =+'App.2-BA_Fixed Asset Cont'!$T166 -> 137645.74 | L202: 28.53107194 | M202: =1/L202 -> 0.0350495068 | N202: 40 | O202: =1/N202 -> 0.025 | P202: 63526.47225 | Q202: 4802.116 | R202: 1720.57175 | S202: 70049.16 | T202: =-'App.2-BA_Fixed Asset Cont'!$Z166 -> 70049.16 | U202: 0
C203: 1855 | D203: Services (Underground) | E203: =4139248+4131033 -> 8270281 | G203: 8270281 | H203: 435451.95 | J203: 435451.95 | K203: =+'App.2-BA_Fixed Asset Cont'!$T167 -> 430026 | L203: 23.31819159 | M203: 0.04288497228 | N203: 35 | O203: 0.02857142857 | P203: 354670.7714 | Q203: 0 | R203: 6143.228571 | S203: 360814 | T203: =-'App.2-BA_Fixed Asset Cont'!$Z167 -> 360814 | U203: 0
C204: 1860 | D204: Meters | E204: 1276931 | G204: 1276931 | H204: 194876.05 | J204: 194876.05 | K204: =+'App.2-BA_Fixed Asset Cont'!$T168-K205 -> 132541.81 | L204: 33.6013327 | M204: 0.02976072435 | N204: 30 | O204: 0.03333333333 | P204: 38002.3915 | Q204: =+J204/N204 -> 6495.868333 | R204: 2209.030167 | S204: 46707.29 | T204: =-'App.2-BA_Fixed Asset Cont'!$Z168-T205-T206 -> 46707.29 | U204: 0
C205: 1860 | D205: Meters (Smart Meters) | E205: =4240379+134207.7 -> 4374586.7 | G205: 4374586.7 | H205: 165067.95 | J205: 165067.95 | K205: 98609.69 | L205: 9.27933207 | M205: 0.1077663772 | N205: 12 | O205: 0.08333333333 | P205: 471433.3604 | Q205: 13755.6625 | R205: 4108.737083 | S205: 489297.76 | T205: 489297.76 | U205: 0
C206: 1860 | D206: Meters (Intangibles) | E206: =126013+317761+10224+26400 -> 480398 | G206: 480398 | H206: 11238.86 | J206: 11238.86 | K206: 0 | L206: 5.36117328 | M206: 0.1865263344 | N206: 5 | O206: 0.2 | P206: =+G206/L206 -> 89606.878 | Q206: 2247.772 | R206: 0 | S206: 91854.65 | T206: 91854.65 | U206: 0
C207: 1905 | D207: Land | E207: =+'App.2-BA_Fixed Asset Cont'!$S$29+'App.2-BA_Fixed Asset Cont'!$Y$29 -> 182214.88 | G207: 182214.88 | H207: 0 | J207: 0 | K207: 0 | M207: 0 | Q207: 0 | R207: 0 | S207: 0 | U207: 0
C208: 1908 | D208: Buildings & Fixtures | E208: =+'App.2-BA_Fixed Asset Cont'!$S$30+'App.2-BA_Fixed Asset Cont'!$Y$30 -> 3356863.94 | G208: 3356863.94 | H208: 545229 | J208: 545229 | K208: =+'App.2-BA_Fixed Asset Cont'!$T170 -> -3524.7 | L208: 29.06770712 | M208: =1/L208 -> 0.03440243828 | N208: 50 | O208: =1/N208 -> 0.02 | P208: =+G208/L208 -> 115484.3045 | Q208: =+J208/N208 -> 10904.58 | R208: =+K208*0.5/N208 -> -35.247 | S208: 126353.6375 | T208: =-'App.2-BA_Fixed Asset Cont'!$Z170 -> 126353.6375 | U208: 0
C209: 1908 | D209: Buildings & Fixtures, HVAC | E209: =+'App.2-BA_Fixed Asset Cont'!$S$31+'App.2-BA_Fixed Asset Cont'!$Y$31 -> 0 | G209: 0 | H209: 8700 | J209: 8700 | K209: =+'App.2-BA_Fixed Asset Cont'!$T171 -> 128536.25 | L209: 0 | M209: 0 | N209: 10 | O209: 0.1 | P209: 0 | Q209: =+J209/N209 -> 870 | R209: 6426.8125 | S209: 7296.8125 | T209: =-'App.2-BA_Fixed Asset Cont'!$Z171 -> 7296.8125 | U209: 0
C210: 1908 | D210: Buildings & Fixtures-Roof, Paving/Parking | E210: =+'App.2-BA_Fixed Asset Cont'!$S$32+'App.2-BA_Fixed Asset Cont'!$Y$32++'App.2-BA_Fixed Asset Cont'!$S$33+'App.2-BA_Fixed Asset Cont'!$Y$33 -> 188439 | G210: 188439 | H210: 291010 | J210: 291010 | K210: =+'App.2-BA_Fixed Asset Cont'!$T172 -> 59785 | L210: 18.96112302 | M210: 0 | N210: 19.348 | O210: 0.05168492867 | P210: =+G210/L210 -> 9938.177176 | Q210: 15040.83109 | R210: 1544.99173 | S210: 26524 | T210: =-'App.2-BA_Fixed Asset Cont'!$Z173+-'App.2-BA_Fixed Asset Cont'!$Z172 -> 26524 | U210: 0
C211: 1910 | D211: Leasehold Improvements | E211: =+'App.2-BA_Fixed Asset Cont'!$S$34+'App.2-BA_Fixed Asset Cont'!$Y$34 -> 0 | G211: 0 | H211: 0 | J211: 0 | K211: =+'App.2-BA_Fixed Asset Cont'!$T174 -> 0 | M211: 0 | O211: 0 | P211: 0 | Q211: 0 | R211: 0 | S211: 0 | T211: =-'App.2-BA_Fixed Asset Cont'!$Z174 -> 0 | U211: 0
C212: 1915 | D212: Office Furniture & Equipment (10 years) | E212: =+'App.2-BA_Fixed Asset Cont'!$S$35+'App.2-BA_Fixed Asset Cont'!$Y$35 -> 165400.83 | G212: 165400.83 | H212: 55558 | J212: 55558 | K212: =+'App.2-BA_Fixed Asset Cont'!$T175 -> 98495.56 | L212: 6.791336056 | M212: =1/L212 -> 0.1472464316 | N212: 10 | O212: =1/N212 -> 0.1 | P212: =+G212/L212 -> 24354.682 | Q212: =+J212/N212 -> 5555.8 | R212: =+K212*0.5/N212 -> 4924.778 | S212: 34835.26 | T212: =-'App.2-BA_Fixed Asset Cont'!$Z175 -> 34835.26 | U212: 0
C213: 1915 | D213: Office Furniture & Equipment (5 years) | E213: =+'App.2-BA_Fixed Asset Cont'!$S$36+'App.2-BA_Fixed Asset Cont'!$Y$36 -> 0 | G213: 0 | H213: 0 | J213: 0 | K213: =+'App.2-BA_Fixed Asset Cont'!$T176 -> 0 | M213: 0 | O213: 0 | P213: 0 | Q213: 0 | R213: 0 | S213: 0 | T213: =-'App.2-BA_Fixed Asset Cont'!$Z176 -> 0 | U213: 0
C214: 1920 | D214: Computer Equipment - Hardware | E214: =+'App.2-BA_Fixed Asset Cont'!$S$37+'App.2-BA_Fixed Asset Cont'!$Y$37 -> 238725.79 | G214: 238725.79 | H214: 228355.38 | J214: 228355.38 | K214: =+'App.2-BA_Fixed Asset Cont'!$T177 -> 98876.78 | L214: =+G214/(T214-R214-Q214) -> 4.279588456 | M214: =1/L214 -> 0.2336673281 | N214: 4 | O214: =1/N214 -> 0.25 | P214: =+G214/L214 -> 55782.4175 | Q214: =+J214/N214 -> 57088.845 | R214: =+K214*0.5/N214 -> 12359.5975 | S214: 125230.86 | T214: =-'App.2-BA_Fixed Asset Cont'!$Z177 -> 125230.86 | U214: 0
C215: 1920 | D215: Computer Equip.-Hardware(Post Mar. 22/04) | E215: =+'App.2-BA_Fixed Asset Cont'!$S$38+'App.2-BA_Fixed Asset Cont'!$Y$38 -> 0 | G215: 0 | H215: 0 | J215: 0 | K215: =+'App.2-BA_Fixed Asset Cont'!$T178 -> 0 | M215: 0 | O215: 0 | P215: 0 | Q215: 0 | R215: 0 | S215: 0 | T215: =-'App.2-BA_Fixed Asset Cont'!$Z178 -> 0 | U215: 0
C216: 1920 | D216: Computer Equip.-Hardware(Post Mar. 19/07) | E216: =+'App.2-BA_Fixed Asset Cont'!$S$39+'App.2-BA_Fixed Asset Cont'!$Y$39 -> 0 | G216: 0 | H216: 0 | J216: 0 | K216: =+'App.2-BA_Fixed Asset Cont'!$T179 -> 0 | M216: 0 | O216: 0 | P216: 0 | Q216: 0 | R216: 0 | S216: 0 | T216: =-'App.2-BA_Fixed Asset Cont'!$Z179 -> 0 | U216: 0
C217: 1925 | D217: Computer Equip.-Software (Application) | E217: =+'App.2-BA_Fixed Asset Cont'!$S$40+'App.2-BA_Fixed Asset Cont'!$Y$40 -> 367684.16 | G217: 367684.16 | H217: 306097.5 | J217: 306097.5 | K217: =+'App.2-BA_Fixed Asset Cont'!$T180 -> 128310.9 | L217: =+G217/(T217-R217-Q217) -> 7.515445652 | M217: =1/L217 -> 0.1330593083 | N217: 5 | O217: 0 | P217: =+G217/L217 -> 48923.8 | Q217: =+J217/N217 -> 61219.5 | R217: =+K217*0.5/N217 -> 12831.09 | S217: 122974.39 | T217: =-'App.2-BA_Fixed Asset Cont'!$Z180 -> 122974.39 | U217: 0
C218: 1925 | D218: Computer Equip.-Software (Application) | G218: =+E218-F218 -> 0 | H218: 85323 | J218: =+H218-I218 -> 85323 | K218: =+'App.2-BA_Fixed Asset Cont'!$T181 -> 13935.3 | L218: 0 | M218: 0 | N218: 3 | O218: 0 | P218: 0 | Q218: =+J218/N218 -> 28441 | R218: =+K218*0.5/N218 -> 2322.55 | S218: =+P218+Q218+R218 -> 30763.55 | T218: =-'App.2-BA_Fixed Asset Cont'!$Z181 -> 30763.55 | U218: 0
C219: 1930 | D219: Transportation Equipment | E219: =+'App.2-BA_Fixed Asset Cont'!$S$42+'App.2-BA_Fixed Asset Cont'!$Y$42 -> 0 | G219: 0 | H219: =+J132+K132 -> 0 | J219: 0 | K219: =+'App.2-BA_Fixed Asset Cont'!$T182 -> 0 | M219: 0 | O219: 0 | P219: 0 | Q219: 0 | R219: 0 | S219: 0 | T219: =-'App.2-BA_Fixed Asset Cont'!$Z182 -> 0 | U219: 0
C220: 1935 | D220: Stores Equipment | E220: =+'App.2-BA_Fixed Asset Cont'!$S$43+'App.2-BA_Fixed Asset Cont'!$Y$43 -> 0 | G220: 0 | H220: 0 | J220: 0 | K220: =+'App.2-BA_Fixed Asset Cont'!$T183 -> 0 | M220: 0 | O220: 0 | P220: 0 | Q220: 0 | R220: 0 | S220: 0 | T220: =-'App.2-BA_Fixed Asset Cont'!$Z183 -> 0 | U220: 0
C221: 1940 | D221: Tools, Shop & Garage Equipment | E221: =+'App.2-BA_Fixed Asset Cont'!$S$44+'App.2-BA_Fixed Asset Cont'!$Y$44 -> 856.8 | F221: 856.8 | G221: 0 | H221: 0 | J221: 0 | K221: =+'App.2-BA_Fixed Asset Cont'!$T184 -> 0 | M221: 0 | N221: 5 | O221: 0 | P221: 0 | Q221: 0 | R221: 0 | S221: 0 | T221: =-'App.2-BA_Fixed Asset Cont'!$Z184 -> 0 | U221: 0
C222: 1945 | D222: Measurement & Testing Equipment | E222: =+'App.2-BA_Fixed Asset Cont'!$S$45+'App.2-BA_Fixed Asset Cont'!$Y$45 -> 4181.81 | F222: 4181.81 | G222: 0 | H222: 0 | J222: 0 | K222: =+'App.2-BA_Fixed Asset Cont'!$T185 -> 0 | M222: 0 | N222: 5 | O222: 0 | P222: 0 | Q222: 0 | R222: 0 | S222: 0 | T222: =-'App.2-BA_Fixed Asset Cont'!$Z185 -> 0 | U222: 0
C223: 1950 | D223: Power Operated Equipment | E223: =+'App.2-BA_Fixed Asset Cont'!$S$46+'App.2-BA_Fixed Asset Cont'!$Y$46 -> 0 | G223: 0 | H223: 0 | J223: 0 | K223: =+'App.2-BA_Fixed Asset Cont'!$T186 -> 0 | M223: 0 | O223: 0 | P223: 0 | Q223: 0 | R223: 0 | S223: 0 | T223: =-'App.2-BA_Fixed Asset Cont'!$Z186 -> 0 | U223: 0
C224: 1955 | D224: Communications Equipment | E224: =+'App.2-BA_Fixed Asset Cont'!$S$47+'App.2-BA_Fixed Asset Cont'!$Y$47 -> 0 | G224: 0 | H224: 0 | J224: 0 | K224: =+'App.2-BA_Fixed Asset Cont'!$T187 -> 0 | M224: 0 | O224: 0 | P224: 0 | Q224: 0 | R224: 0 | S224: 0 | T224: =-'App.2-BA_Fixed Asset Cont'!$Z187 -> 0 | U224: 0
C225: 1955 | D225: Communication Equipment (Smart Meters) | E225: =+'App.2-BA_Fixed Asset Cont'!$S$48+'App.2-BA_Fixed Asset Cont'!$Y$48 -> 0 | G225: 0 | H225: 0 | J225: 0 | K225: =+'App.2-BA_Fixed Asset Cont'!$T188 -> 0 | M225: 0 | O225: 0 | P225: 0 | Q225: 0 | R225: 0 | S225: 0 | T225: =-'App.2-BA_Fixed Asset Cont'!$Z188 -> 0 | U225: 0
C226: 1960 | D226: Miscellaneous Equipment | E226: =+'App.2-BA_Fixed Asset Cont'!$S$49+'App.2-BA_Fixed Asset Cont'!$Y$49 -> 0 | G226: 0 | H226: 0 | J226: 0 | K226: =+'App.2-BA_Fixed Asset Cont'!$T189 -> 0 | M226: 0 | O226: 0 | P226: 0 | Q226: 0 | R226: 0 | S226: 0 | T226: =-'App.2-BA_Fixed Asset Cont'!$Z189 -> 0 | U226: 0
C227: 1970 | D227: Load Management Controls Customer Premises | E227: =+'App.2-BA_Fixed Asset Cont'!$S$50+'App.2-BA_Fixed Asset Cont'!$Y$50 -> 0 | G227: 0 | H227: 0 | J227: 0 | K227: =+'App.2-BA_Fixed Asset Cont'!$T190 -> 0 | M227: 0 | O227: 0 | P227: 0 | Q227: 0 | R227: 0 | S227: 0 | T227: =-'App.2-BA_Fixed Asset Cont'!$Z190 -> 0 | U227: 0
C228: 1975 | D228: Load Management Controls Utility Premises | E228: =+'App.2-BA_Fixed Asset Cont'!$S$51+'App.2-BA_Fixed Asset Cont'!$Y$51 -> 0 | G228: 0 | H228: 0 | J228: 0 | K228: =+'App.2-BA_Fixed Asset Cont'!$T191 -> 0 | M228: 0 | O228: 0 | P228: 0 | Q228: 0 | R228: 0 | S228: 0 | T228: =-'App.2-BA_Fixed Asset Cont'!$Z191 -> 0 | U228: 0
C229: 1980 | D229: System Supervisor Equipment | E229: =+'App.2-BA_Fixed Asset Cont'!$S$52+'App.2-BA_Fixed Asset Cont'!$Y$52 -> 627868.11 | G229: 627868.11 | H229: 153768.41 | J229: 153768.41 | K229: =+'App.2-BA_Fixed Asset Cont'!$T192 -> 45751.12 | L229: 6.020722906 | M229: =1/L229 -> 0.1660930117 | N229: 15 | O229: =1/N229 -> 0.06666666667 | P229: =+G229/L229 -> 104284.5053 | Q229: =+J229/N229 -> 10251.22733 | R229: =+K229*0.5/N229 -> 1525.037333 | S229: 116060.77 | T229: =-'App.2-BA_Fixed Asset Cont'!$Z192 -> 116060.77 | U229: 0
C230: 1980 | D230: System Supervisor Equipment-Scada | E230: =+'App.2-BA_Fixed Asset Cont'!$S$53+'App.2-BA_Fixed Asset Cont'!$Y$53 -> 0 | G230: 0 | H230: 0 | J230: 0 | K230: =+'App.2-BA_Fixed Asset Cont'!$T193 -> 0 | M230: 0 | O230: 0 | P230: 0 | Q230: 0 | R230: 0 | S230: =+P230+Q230+R230 -> 0 | T230: =-'App.2-BA_Fixed Asset Cont'!$Z193 -> 0 | U230: 0
C231: 1985 | D231: Miscellaneous Fixed Assets | E231: 0 | G231: 0 | H231: 0 | J231: 0 | K231: =+'App.2-BA_Fixed Asset Cont'!$T194 -> 0 | M231: 0 | O231: 0 | P231: 0 | Q231: 0 | R231: 0 | S231: 0 | T231: 0 | U231: 0
C232: 1990 | D232: Other Tangible Property | E232: 0 | G232: 0 | H232: 0 | J232: 0 | M232: 0 | O232: 0 | P232: 0 | Q232: 0 | R232: 0 | S232: 0 | U232: 0
C233: 1995 | D233: Contributions & Grants | E233: =+'App.2-BA_Fixed Asset Cont'!$S$55+'App.2-BA_Fixed Asset Cont'!$Y$55 -> -21312029.43 | G233: -21312029.43 | H233: -5137004 | J233: -5137004 | K233: =+'App.2-BA_Fixed Asset Cont'!$T195 -> -10178882.35 | L233: 29.13579083 | M233: =1/L233 -> 0.03432204761 | N233: 47.97 | O233: 0.4797 | P233: =+G233/L233 -> -731472.4887 | Q233: =+J233/N233 -> -107087.8466 | R233: =+K233*0.5/N233 -> -106096.3347 | S233: -944656.67 | T233: =-'App.2-BA_Fixed Asset Cont'!$Z195 -> -944656.67 | U233: 0
D234: Total | E234: =SUM(E186:E233) -> 67544946.13 | F234: 9329.62 | G234: 67535616.51 | H234: 9581190.31 | I234: 0 | J234: 9581190.31 | K234: 5563640.4 | P234: =SUM(P186:P233) -> 3004311.489 | Q234: 375367.1686 | R234: 98652.27229 | S234: 3478330.93 | T234: 3478330.93 | U234: 0
C237: General: | D237: Applicants are to complete this appendix to show the reasonability of the depreciation expense that is included in rate base via. Accumulated depreciation and the revenue requirement.
D238: Applicants must provide a breakdown of depreciation and amortization expense in the above format for all relevant accounts. Balances presented in the table should exclude asset retirement obligations (AROs) and the related depreciation and accretion expense. These should be disclosed separately consistent with the Notes of historical Audited Financial Statements.
C241: Notes:
C242: 1 | D242: This is the net book value of assets that existed as at the date of the utility's change in depreciation policies (i.e. as at Jan. 1, 2012 or Jan. 1, 2013). These assets are to be depreciated at the average remaining service life. This amount will not change in years subsequent to the date of the utility's change in depreciation policies. This column is expected to be used until the assets that existed as at the date of the utility's change in depreciation policies are fully depreciated.
C243: 2 | D243: This is the opening gross book value of assets that have been acquired after the date of the utilities change in depreciation policies (i.e. additions starting in 2012/2013 for those who changed policies Jan. 1, 2012/2013). These assets are to be depreciated at the revised service life. The amount is expected to be equal to the gross book value of the prior year plus the prior year's additions.
C244: 3 | D244: A recalculation should be performed to determine the average remaining life of opening balance of assets (i.e. excluding current year's additions) under the change in policies under CGAAP. For example, Asset A had a useful life of 20 years under CGAAP without the change in policies. On January 1 of the year of policy changes, Asset A was 3 years depreciated. As a result, Asset A would have a remaining service life of 17 years (20 years less 3 years) as at January 1 of the year of policy changes. Due to making the change in policies under CGAAP, management re-assessed the asset useful lives and concluded that the revised useful life of Asset A is now 30 years. Therefore, the average remaining useful life of the opening balance of Asset A is determined to be 27 years (30 years less 3 years) under the revised CGAAP as at January 1 of the year of policy changes.
C245: 4 | D245: The useful life used should be consistent with the OEB's regulatory accounting policies as set out in the Accounting Procedures Handbook for Electricity Distributors, effective Jan. 1, 2012 and also with the Report of the Board, Transition to International Financial Reporting Standards, EB-2008-0408, and the Kinectrics Report.
C246: 5 | D246: Board policy of the "half-year" rule - the applicant must ensure that additions in the year attract a half-year depreciation expense in the first year. Deviations from this standard practice must be supported in the application.
C247: 6 | D247: The applicant must provide an explanation of material variances in evidence.
C248: 7 | D248: This should include assets in column a (excel column C) that become fully depreciated since the date of the policy change. The amount input in b (excel column D) should equal the net book value of the asset as at the date of depreciation policy change
... 208 more rows

Sheet Appendix 2-BB Service Life
A6: Appendix 2-BB
A7: Service Life Comparison
A8: Table F-1 from Kinetrics Report1
C12: Asset Details | F12: Useful Life | J12: USoA Account Number | K12: USoA Account Description | L12: Current | N12: Proposed | P12: Outside Range of Min, Max TUL?
A13: Parent* | B13: # | C13: Category| Component | Type | F13: MIN UL | G13: TUL | H13: MAX UL | L13: Years | M13: Rate | N13: Years | O13: Rate | P13: Below Min TUL | Q13: Above Max TUL
A14: OH | B14: 1 | C14: Fully Dressed Wood Poles | D14: Overall | F14: 35 | G14: 45 | H14: 75 | J14: 1830 | K14: Poles, Towers & Fixtures | L14: 25 | M14: =IF(ISERROR(1/L14), "", 1/L14) -> 0.04 | N14: 45 | O14: =IF(ISERROR(1/N14), "", 1/N14) -> 0.02222222222 | P14: =IF(ISBLANK(N14),"",IF(N14<F14,"Yes","No")) -> No | Q14: =IF(ISBLANK(N14),"",IF(N14>H14,"Yes","No")) -> No
D15: Cross Arm | E15: Wood | F15: 20 | G15: 40 | H15: 55 | O15: =IF(ISERROR(1/N15), "", 1/N15) ->  | P15: =IF(ISBLANK(N15),"",IF(N15<F15,"Yes","No")) ->  | Q15: =IF(ISBLANK(N15),"",IF(N15>H15,"Yes","No")) -> 
E16: Steel | F16: 30 | G16: 70 | H16: 95
B17: 2 | C17: Fully Dressed Concrete Poles | D17: Overall | F17: 50 | G17: 60 | H17: 80
D18: Cross Arm | E18: Wood | F18: 20 | G18: 40 | H18: 55
E19: Steel | F19: 30 | G19: 70 | H19: 95
B20: 3 | C20: Fully Dressed Steel Poles | D20: Overall | F20: 60 | G20: 60 | H20: 80 | J20: 1830 | K20: Poles, Towers & Fixtures | L20: 25 | M20: 0.04 | N20: 60 | O20: 0.01666666667 | P20: No | Q20: No
D21: Cross Arm | E21: Wood | F21: 20 | G21: 40 | H21: 55
E22: Steel | F22: 30 | G22: 70 | H22: 95
B23: 4 | C23: OH Line Switch | F23: 30 | G23: 45 | H23: 55 | J23: 1835 | K23: Overhead Conductors & Devices | L23: 25 | M23: 0.04 | N23: 30 | O23: 0.03333333333 | P23: No | Q23: No
B24: 5 | C24: OH Line Switch Motor | F24: 15 | G24: 25 | H24: 25
B25: 6 | C25: OH Line Switch RTU | F25: 15 | G25: 20 | H25: 20
B26: 7 | C26: OH Integral Switches | F26: 35 | G26: 45 | H26: 60
B27: 8 | C27: OH Conductors | F27: 50 | G27: 60 | H27: 75 | J27: 1835 | K27: Overhead Conductors & Devices | L27: 25 | M27: 0.04 | N27: 60 | O27: 0.01666666667 | P27: No | Q27: No
B28: 9 | C28: OH Transformers & Voltage Regulators | F28: 30 | G28: 40 | H28: 60 | J28: 1850 | K28: Line Transformers | L28: 25 | M28: 0.04 | N28: 40 | O28: 0.025 | P28: No | Q28: No
B29: 10 | C29: OH Shunt Capacitor Banks | F29: 25 | G29: 30 | H29: 40
B30: 11 | C30: Reclosers | F30: 25 | G30: 40 | H30: 55
A31: TS & MS | B31: 12 | C31: Power Transformers | D31: Overall | F31: 30 | G31: 45 | H31: 60 | J31: 1820 | K31: Distribution Station Equipment <50 kV | L31: 30 | M31: 0.03333333333 | N31: 45 | O31: 0.02222222222 | P31: No | Q31: No
D32: Bushing | F32: 10 | G32: 20 | H32: 30
D33: Tap Changer | F33: 20 | G33: 30 | H33: 60
B34: 13 | C34: Station Service Transformer | F34: 30 | G34: 45 | H34: 55 | J34: 1820 | K34: Distribution Station Equipment <50 kV | L34: 30 | M34: 0.03333333333 | N34: 45 | O34: 0.02222222222 | P34: No | Q34: No
B35: 14 | C35: Station Grounding Transformer | F35: 30 | G35: 40 | H35: 40
B36: 15 | C36: Station DC System | D36: Overall | F36: 10 | G36: 20 | H36: 30
D37: Battery Bank | F37: 10 | G37: 15 | H37: 15
D38: Charger | F38: 20 | G38: 20 | H38: 30
B39: 16 | C39: Station Metal Clad Switchgear | D39: Overall | F39: 30 | G39: 40 | H39: 60 | J39: 1820 | K39: Distribution Station Equipment <50 kV | L39: 30 | M39: 0.03333333333 | N39: 45 | O39: 0.02222222222 | P39: No | Q39: No
D40: Removable Breaker | F40: 25 | G40: 40 | H40: 60
B41: 17 | C41: Station Independent Breakers | F41: 35 | G41: 45 | H41: 65 | J41: 1820 | K41: Distribution Station Equipment <50 kV | L41: 30 | M41: 0.03333333333 | N41: 45 | O41: 0.02222222222 | P41: No | Q41: No
B42: 18 | C42: Station Switch | F42: 30 | G42: 50 | H42: 60 | J42: 1820 | K42: Distribution Station Equipment <50 kV | L42: 30 | M42: 0.03333333333 | N42: 45 | O42: 0.02222222222 | P42: No | Q42: No
B43: 19 | C43: Electromechanical Relays | F43: 25 | G43: 35 | H43: 50
B44: 20 | C44: Solid State Relays | F44: 10 | G44: 30 | H44: 45
B45: 21 | C45: Digital & Numeric Relays | F45: 15 | G45: 20 | H45: 20
B46: 22 | C46: Rigid Busbars | F46: 30 | G46: 55 | H46: 60 | J46: 1820 | K46: Distribution Station Equipment <50 kV | L46: 30 | M46: 0.03333333333 | N46: 45 | O46: 0.02222222222 | P46: No | Q46: No
B47: 23 | C47: Steel Structure | F47: 35 | G47: 50 | H47: 90 | J47: 1820 | K47: Distribution Station Equipment <50 kV | L47: 30 | M47: 0.03333333333 | N47: 45 | O47: 0.02222222222 | P47: No | Q47: No
A48: UG | B48: 24 | C48: Primary Paper Insulated Lead Covered (PILC) Cables | F48: 60 | G48: 65 | H48: 75
B49: 25 | C49: Primary Ethylene-Propylene Rubber (EPR) Cables | F49: 20 | G49: 25 | H49: 25
B50: 26 | C50: Primary Non-Tree Retardant (TR) Cross Linked Polyethylene (XLPE) Cables Direct Buried | F50: 20 | G50: 25 | H50: 30
B51: 27 | C51: Primary Non-TR XLPE Cables in Duct | F51: 20 | G51: 25 | H51: 30
B52: 29 | C52: Primary TR XLPE Cable in Duct | F52: 35 | G52: 40 | H52: 55 | J52: 1845 | K52: Underground Conductors & Devices | L52: 25 | M52: 0.04 | N52: 35 | O52: 0.02857142857 | P52: No | Q52: No
B53: 30 | C53: Secondary PILC Cables | F53: 70 | G53: 75 | H53: 80
B54: 31 | C54: Secondary Cables Direct Buried | F54: 25 | G54: 35 | H54: 40 | J54: 1855 | K54: Secondary Services | L54: 25 | M54: 0.04 | N54: 35 | O54: 0.02857142857 | P54: No | Q54: No
B55: 32 | C55: Secondary Cables in Duct | F55: 35 | G55: 40 | H55: 60 | J55: 1845 | K55: Underground Conductors & Devices | L55: 25 | M55: 0.04 | N55: 40 | O55: 0.025 | P55: No | Q55: No
B56: 33 | C56: Network Tranformers | D56: Overall | F56: 20 | G56: 35 | H56: 50
D57: Protector | F57: 20 | G57: 35 | H57: 40
B58: 34 | C58: Pad-Mounted Transformers | F58: 25 | G58: 40 | H58: 45 | J58: 1850 | K58: Underground Transformers | L58: 25 | M58: 0.04 | N58: 40 | O58: 0.025 | P58: No | Q58: No
B59: 35 | C59: Submersible/Vault Transformers | F59: 25 | G59: 35 | H59: 45
B60: 36 | C60: UG Foundation | F60: 35 | G60: 55 | H60: 70 | J60: 1840 | K60: Underground Conduit | L60: 25 | M60: 0.04 | N60: 60 | O60: 0.01666666667 | P60: No | Q60: No
B61: 37 | C61: UG Vaults | D61: Overall | F61: 40 | G61: 60 | H61: 80
D62: Roof | F62: 20 | G62: 30 | H62: 45
B63: 38 | C63: UG Vault Switches | F63: 20 | G63: 35 | H63: 50 | M63: =IF(ISERROR(1/L63), "", 1/L63) ->  | O63: =IF(ISERROR(1/N63), "", 1/N63) ->  | P63: =IF(ISBLANK(N63),"",IF(N63<F63,"Yes","No")) ->  | Q63: =IF(ISBLANK(N63),"",IF(N63>H63,"Yes","No")) -> 
B64: 39 | C64: Pad-Mounted Switchgear | F64: 20 | G64: 30 | H64: 45 | J64: 1845 | K64: Underground Conductors & Devices | L64: 25 | M64: 0.04 | N64: 25 | O64: 0.04 | P64: No | Q64: No
B65: 40 | C65: Ducts | F65: 30 | G65: 50 | H65: 85 | J65: 1845 | K65: Underground Conductors & Devices | L65: 25 | M65: =IF(ISERROR(1/L65), "", 1/L65) -> 0.04 | N65: 35 | O65: =IF(ISERROR(1/N65), "", 1/N65) -> 0.02857142857 | P65: =IF(ISBLANK(N65),"",IF(N65<F65,"Yes","No")) -> No | Q65: =IF(ISBLANK(N65),"",IF(N65>H65,"Yes","No")) -> No
B66: 41 | C66: Concrete Encased Duct Banks | F66: 35 | G66: 55 | H66: 80 | J66: 1840 | K66: Underground Conduit | L66: 25 | M66: 0.04 | N66: 60 | O66: 0.01666666667 | P66: No | Q66: No
B67: 42 | C67: Cable Chambers | F67: 50 | G67: 60 | H67: 80 | J67: 1840 | K67: Underground Conduit | L67: 25 | M67: 0.04 | N67: 60 | O67: 0.01666666667 | P67: No | Q67: No
A68: S | B68: 43 | C68: Remote SCADA | F68: 15 | G68: 20 | H68: 30 | J68: 1980 | K68: System Supervisor Equipment | L68: 15 | M68: 0.06666666667 | N68: 15 | O68: 0.06666666667 | P68: No | Q68: No
A71: Table F-2 from Kinetrics Report1
C73: Asset Details | F73: Useful Life Range | J73: USoA Account Number | K73: USoA Account Description | L73: Current | N73: Proposed | P73: Outside Range of Min, Max TUL?
B74: # | C74: Category| Component | Type | L74: Years | M74: Rate | N74: Years | O74: Rate | P74: Below Min Range | Q74: Above Max Range
B75: 1 | C75: Office Equipment | F75: 5 | G75: 15 | J75: 1915 | K75: Office Furniture & Equipment | L75: 10 | M75: =IF(ISERROR(1/L75), "", 1/L75) -> 0.1 | N75: 10 | O75: =IF(ISERROR(1/N75), "", 1/N75) -> 0.1 | P75: =IF(ISBLANK(N75),"",IF(N75<F75,"Yes","No")) -> No | Q75: =IF(ISBLANK(N75),"",IF(N75>G75,"Yes","No")) -> No
B76: 2 | C76: Vehicles | D76: Trucks & Buckets | F76: 5 | G76: 15 | J76: 1930 | K76: Transportation Equipment < 3 TON | L76: 5 | M76: =IF(ISERROR(1/L76), "", 1/L76) -> 0.2 | N76: 5 | O76: =IF(ISERROR(1/N76), "", 1/N76) -> 0.2 | P76: =IF(ISBLANK(N76),"",IF(N76<F76,"Yes","No")) -> No | Q76: =IF(ISBLANK(N76),"",IF(N76>G76,"Yes","No")) -> No
D77: Trucks & Buckets | F77: 5 | G77: 15 | J77: 1930 | K77: Transportation Equipment > 3 TON | L77: 8 | M77: 0.125 | N77: 8 | O77: 0.125 | P77: No | Q77: No
D78: Trailers | F78: 5 | G78: 20 | J78: .
D79: Vans | F79: 5 | G79: 10
B80: 3 | C80: Administrative Buildings | F80: 50 | G80: 75 | J80: 1808 | K80: Buildings | L80: 50 | M80: 0.02 | N80: 50 | O80: 0.02 | P80: No | Q80: No
B81: 4 | C81: Leasehold Improvements | F81: Lease dependent
B82: 5 | C82: Station Buildings | D82: Station Buildings | F82: 50 | G82: 75
D83: Parking -*Administration Building | F83: 25 | G83: 30 | J83: 1908 | K83: Parking & Paving | L83: 20 | M83: 0.05 | N83: 20 | O83: 0.05 | P83: Yes | Q83: No
D84: Fence | F84: 25 | G84: 60
D85: Roof *Administration Building | F85: 20 | G85: 30 | J85: 1908 | K85: Roof | L85: 20 | M85: 0.05 | N85: 20 | O85: 0.05 | P85: No | Q85: No
B86: 6 | C86: Computer Equipment | D86: Hardware | F86: 3 | G86: 5 | J86: 1920 | K86: Computer Equipment - Hardware | L86: 5 | M86: 0.2 | N86: 4 | O86: 0.25 | P86: No | Q86: No
D87: Software | F87: 2 | G87: 5 | J87: 1925 | K87: Computer Equip.-Software (Application) | L87: 5 | M87: 0.2 | N87: 5 | O87: 0.2 | P87: No | Q87: No
D88: Software | F88: 2 | G88: 5 | J88: 1925 | K88: Computer Equip.-Software (server) | L88: 3 | M88: 0.3333333333 | N88: 3 | O88: 0.3333333333 | P88: No | Q88: No
B89: 7 | C89: Equipment | D89: Power Operated | F89: 5 | G89: 10
D90: Stores | F90: 5 | G90: 10 | J90: 1935 | K90: Stores Equipment | L90: 10 | M90: 0.1 | N90: 10 | O90: 0.1 | P90: No | Q90: No
D91: Tools, Shop, Garage Equipment | F91: 5 | G91: 10 | J91: 1940 | K91: Tools, Shop & Garage Equipment | L91: 10 | M91: 0.1 | N91: 10 | O91: 0.1 | P91: No | Q91: No
D92: Measurement & Testing Equipment | F92: 5 | G92: 10
B93: 8 | C93: Communication | D93: Towers | F93: 60 | G93: 70
D94: Wireless | F94: 2 | G94: 10
B95: 9 | C95: Residential Energy Meters | F95: 25 | G95: 35 | J95: 1860 | K95: Meters | L95: 25 | M95: 0.04 | N95: 25 | O95: 0.04 | P95: No | Q95: No
B96: 10 | C96: Industrial/Commercial Energy Meters | F96: 25 | G96: 35 | J96: 1860 | K96: Meters | L96: 25 | M96: 0.04 | N96: 25 | O96: 0.04 | P96: No | Q96: No
B97: 11 | C97: Wholesale Energy Meters | F97: 15 | G97: 30 | J97: 1860 | K97: Meters | L97: 30 | M97: 0.03333333333 | N97: 30 | O97: 0.03333333333 | P97: No | Q97: No
B98: 12 | C98: Current & Potential Transformer (CT & PT) | F98: 35 | G98: 50
B99: 13 | C99: Smart Meters | F99: 5 | G99: 15 | J99: 1860 | K99: Meters | L99: 12 | M99: 0.08333333333 | N99: 12 | O99: 0.08333333333 | P99: No | Q99: No
B100: 14 | C100: Repeaters - Smart Metering | F100: 10 | G100: 15
B101: 15 | C101: Data Collectors - Smart Metering | F101: 15 | G101: 20
A104: * TS & MS = Transformer and Municipal Stations UG = Underground Systems S = Monitoring and Control Systems
A106: Note 1: | B106: Tables F-1 and F-2 above are to be used as a reference in order to complete columns J, K, L and N.
B107: See pages 17-19 of Kinetrics Report
